Workbook

Sheet Index -->
B12: Index -->

Sheet Index
B1: Case study: Create a P&L from scratch
B2: Sheet index
B4: # | C4: Worksheet | D4: Notes
B5: 1 | C5: Index
B6: 2 | C6: 1. P&L extractions -->
B7: 3 | C7: =+"1.1 "&'1.1 FY2011'!C1 -> 1.1 FY2011
B8: 4 | C8: ="1.2 "&'1.2 FY2012'!B1 -> 1.2 FY2012
B9: 5 | C9: ="1.3 "&'1.3 FY2013'!B1 -> 1.3 FY2013
B10: 6 | C10: 2. Building a P&L -->
B11: 7 | C11: =+"2.1 "&'2.1 Database'!B1 -> 2.1 Database
B12: 8 | C12: =+"2.2 "&'2.2 P&L statement'!B1 -> 2.2 P&L statement
B13: 19 | C13: 3. Charts -->
B14: 20 | C14: =+"3.1 "&'3.1 Column stacked chart'!B1 -> 3.1 Column stacked chart
B15: 21 | C15: =+"3.2 "&'3.2 Dougnut chart'!B1 -> 3.2 Doughnut chart
B16: 22 | C16: ="3.3 "&'3.3 Area & line chart'!B1 -> 3.3 Area & Line chart
B17: 23 | C17: =+"3.4 "&'3.4 Bridge Chart'!B1 -> 3.4 Bridge chart

Sheet 1. P&L extractions -->
B12: 1. P&L extractions -->

Sheet 1.1 FY2011
C1: FY2011
B4: Code | C4: P&L account | D4: Partner company | E4: Name of partner company | F4: Amounts | G4: Account number
B5: 2001110000111111 | C5: Core business revenues | D5: 111111 | E5: External | F5: -14500341 | G5: 2001110000
B6: 2001190000111111 | C6: Other revenues | D6: 111111 | E6: External | F6: -4794856.192 | G6: 2001190000
B7: 20200000001009 | C7: Capitalized costs | D7: 1009 | E7: Green Ventures Ltd | F7: -154890.4 | G7: 2020000000
B8: 20200000001007 | C8: Capitalized costs | D8: 1007 | E8: Generco Sunshine JSC | F8: -1180894.052 | G8: 2020000000
B9: 20200000001008 | C9: Capitalized costs | D9: 1008 | E9: Greenco Ltd | F9: -793079.512 | G9: 2020000000
B10: 2020000000111101 | C10: Capitalized costs | D10: 111101 | E10: Not assigned | F10: -2277197.6 | G10: 2020000000
B11: 2021900000111111 | C11: Direct costs | D11: 111111 | E11: External | F11: 4428911.764 | G11: 2021900000
B12: 2024080000111111 | C12: Freight outbound expenses | D12: 111111 | E12: External | F12: 16977.628 | G12: 2024080000
B13: 202409000088 | C13: R&D expenses | D13: 88 | E13: Generco Ltd | F13: 2245437.54 | G13: 2024090000
B14: 2024090000111111 | C14: R&D expenses | D14: 111111 | E14: External | F14: 16605.634 | G14: 2024090000
B15: 2041000000111111 | C15: Wages and salaries | D15: 111111 | E15: External | F15: 4683394.046 | G15: 2041000000
B16: 2042000000111101 | C16: Pension contributions | D16: 111101 | E16: Not assigned | F16: 1143051.576 | G16: 2042000000
B17: 204200000088 | C17: Pension contributions | D17: 88 | E17: Generco Ltd | F17: 239379.618 | G17: 2042000000
B18: 2045000000111101 | C18: Severance indemnity contribution | D18: 111101 | E18: Not assigned | F18: 104913.8 | G18: 2045000000
B19: 2051210000111101 | C19: D&A | D19: 111101 | E19: Not assigned | F19: 2003262.218 | G19: 2051210000
B20: 2051260000111101 | C20: D&A | D20: 111101 | E20: Not assigned | F20: 41981.296 | G20: 2051260000
B21: 20690100001 | C21: Corporate recharges | D21: 1 | E21: Greeny Ltd | F21: -2156147.4 | G21: 2069010000
B22: 206901000014 | C22: Corporate recharges | D22: 14 | E22: Generco Cosmetics Ltd | F22: -291428.552 | G22: 2069010000
B23: 20690100001037 | C23: Corporate recharges | D23: 1037 | E23: Generco Canada JSC | F23: 0 | G23: 2069010000
B24: 20690100001087 | C24: Corporate recharges | D24: 1087 | E24: Gener Beauty GmbH | F24: -33736.5 | G24: 2069010000
B25: 20690100001009 | C25: Corporate recharges | D25: 1009 | E25: Green Ventures Ltd | F25: 0 | G25: 2069010000
B26: 20690100001007 | C26: Corporate recharges | D26: 1007 | E26: Generco Sunshine JSC | F26: 0 | G26: 2069010000
B27: 20690100001008 | C27: Corporate recharges | D27: 1008 | E27: Greenco Ltd | F27: 0 | G27: 2069010000
B28: 20690100001240 | C28: Corporate recharges | D28: 1240 | E28: Generco UK | F28: -199600.4 | G28: 2069010000
B29: 2069010000111111 | C29: Corporate recharges | D29: 111111 | E29: External | F29: -539141.4 | G29: 2069010000
B30: 2069980000111111 | C30: Other income | D30: 111111 | E30: External | F30: -57.222 | G30: 2069980000
B31: 2070400000111111 | C31: Marketing expenses | D31: 111111 | E31: External | F31: 22314.88 | G31: 2070400000
B32: 207050000088 | C32: Software&IT | D32: 88 | E32: Generco Ltd | F32: 204000 | G32: 2070500000
B33: 2070500000111111 | C33: Software&IT | D33: 111111 | E33: External | F33: 138.414 | G33: 2070500000
B34: 2070600000111111 | C34: Leasings | D34: 111111 | E34: External | F34: 1127445.872 | G34: 2070600000
B35: 207090000043 | C35: Service expenses | D35: 43 | E35: Greeny France SL | F35: 133722 | G35: 2070900000
B36: 20709000002240 | C36: Service expenses | D36: 2240 | E36: Greeny Germany GmbH | F36: 328061.886 | G36: 2070900000
B37: 2070900000111111 | C37: Service expenses | D37: 111111 | E37: External | F37: 2081304.322 | G37: 2070900000
B38: 2071000000111111 | C38: Charges and contributions | D38: 111111 | E38: External | F38: 33410.032 | G38: 2071000000
B39: 2071100000111111 | C39: Insurance expenses | D39: 111111 | E39: External | F39: 213090.852 | G39: 2071100000
B40: 2071209200111111 | C40: Travel expenses | D40: 111111 | E40: External | F40: 1813525.004 | G40: 2071209200
B41: 2071209400111111 | C41: Utility expenses | D41: 111111 | E41: External | F41: 5552.2 | G41: 2071209400
B42: 2071209500111111 | C42: Legal expenses | D42: 111111 | E42: External | F42: 43868.976 | G42: 2071209500
B43: 2071980000111101 | C43: Misc costs | D43: 111101 | E43: Not assigned | F43: 10934.672 | G43: 2071980000
B44: 2079022000111111 | C44: Consulting fees | D44: 111111 | E44: External | F44: 20400 | G44: 2079022000
B45: 2079070000105 | C45: Misc extraordinary expenses | D45: 105 | E45: Generco Healthcare Ltd | F45: 0 | G45: 2079070000
B46: 2079070000111111 | C46: Misc extraordinary expenses | D46: 111111 | E46: External | F46: 563918.152 | G46: 2079070000
B47: 20790800001009 | C47: Difference from eliminations | D47: 1009 | E47: Green Ventures Ltd | F47: 0 | G47: 2079080000
B48: 20790800001007 | C48: Difference from eliminations | D48: 1007 | E48: Generco Sunshine JSC | F48: 0 | G48: 2079080000
B49: 20790800001008 | C49: Difference from eliminations | D49: 1008 | E49: Greenco Ltd | F49: 0 | G49: 2079080000
B50: 20822800001009 | C50: Interest income | D50: 1009 | E50: Green Ventures Ltd | F50: 0 | G50: 2082280000
B51: 20822800001007 | C51: Interest income | D51: 1007 | E51: Generco Sunshine JSC | F51: 0 | G51: 2082280000
B52: 20822800001008 | C52: Interest income | D52: 1008 | E52: Greenco Ltd | F52: 0 | G52: 2082280000
B53: 20822800001240 | C53: Interest income | D53: 1240 | E53: Generco UK | F53: -35810.228 | G53: 2082280000
B54: 2082280000111111 | C54: Interest income | D54: 111111 | E54: External | F54: -51927.418 | G54: 2082280000
B55: 2082202000111101 | C55: Capitalized interest | D55: 111101 | E55: Not assigned | F55: -862270.634 | G55: 2082202000
B56: 2082208200111101 | C56: Non-recurring costs | D56: 111101 | E56: Not assigned | F56: 22763 | G56: 2082208200
B57: 208221400088 | C57: Interest expenses | D57: 88 | E57: Generco Ltd | F57: 2930430.012 | G57: 2082214000
B58: 2091200000111101 | C58: Current taxes | D58: 111101 | E58: Not assigned | F58: -49378.642 | G58: 2091200000
B59: 2091200001111101 | C59: Regional taxes | D59: 111101 | E59: Not assigned | F59: 516250.67 | G59: 2091200001
B60: 2092200000111101 | C60: Deferred taxes | D60: 111101 | E60: Not assigned | F60: 21593.094 | G60: 2092200000
B61: 2999999999111101 | C61: Net income/(loss) | D61: 111101 | E61: Not assigned | F61: =SUM(F5:F60) -> -2904117.994 | G61: 2999999999
B62: x

Sheet 1.2 FY2012
B1: FY2012
B4: Code | C4: P&L account | D4: Partner company | E4: Name of Partner company | F4: Amount | G4: Account number
B5: 2001110000105 | C5: Core business revenues | D5: 105 | E5: Generco Healthcare Ltd | F5: -355396.615 | G5: 2001110000
B6: 2001110000111111 | C6: Core business revenues | D6: 111111 | E6: External | F6: -15792898.75 | G6: 2001110000
B7: 2001190000111111 | C7: Other revenues | D7: 111111 | E7: External | F7: -6960217.645 | G7: 2001190000
B8: 20200000001086 | C8: Capitalized costs | D8: 1086 | E8: G&Resources Ltd | F8: -420017.15 | G8: 2020000000
B9: 20200000001007 | C9: Capitalized costs | D9: 1007 | E9: Generco Sunshine JSC | F9: -89234.88 | G9: 2020000000
B10: 20200000001008 | C10: Capitalized costs | D10: 1008 | E10: Greenco Ltd | F10: -26173 | G10: 2020000000
B11: 2020000000111101 | C11: Capitalized costs | D11: 111101 | E11: Not assigned | F11: -209401.92 | G11: 2020000000
B12: 2021210000111111 | C12: Utility charges | D12: 111111 | E12: External | F12: 14589.33 | G12: 2021210000
B13: 2021900000111111 | C13: Direct costs | D13: 111111 | E13: External | F13: 5463188.825 | G13: 2021900000
B14: 2024080000111111 | C14: Freight outbound expenses | D14: 111111 | E14: External | F14: 343675 | G14: 2024080000
B15: 202409000019 | C15: R&D expenses | D15: 19 | E15: Generco Cosmetics Ltd | F15: 38521 | G15: 2024090000
B16: 202409000088 | C16: R&D expenses | D16: 88 | E16: Generco Ltd | F16: 1980162.23 | G16: 2024090000
B17: 20240900001283 | C17: R&D expenses | D17: 1283 | E17: Generco Ventures Ltd | F17: 1820 | G17: 2024090000
B18: 20240900001924 | C18: R&D expenses | D18: 1924 | E18: Generco Infrastructure Ltd | F18: 10448.13 | G18: 2024090000
B19: 20240900002486 | C19: R&D expenses | D19: 2486 | E19: Generco Exloration Ltd | F19: 10412.5 | G19: 2024090000
B20: 2024090000111111 | C20: R&D expenses | D20: 111111 | E20: External | F20: 27148.625 | G20: 2024090000
B21: 2041000000111111 | C21: Wages and salaries | D21: 111111 | E21: External | F21: 5507141.055 | G21: 2041000000
B22: 2042000000111101 | C22: Social security payments | D22: 111101 | E22: Not assigned | F22: 1752994.18 | G22: 2042000000
B23: 2042000000111101 | C23: Pension contributions | D23: 111101 | E23: Not assigned | F23: 304303.86 | G23: 2042000000
B24: 2045000000111101 | C24: Severance indemnity contribution | D24: 111101 | E24: Not assigned | F24: 500500 | G24: 2045000000
B25: 2049000000111101 | C25: Other personnel expenses | D25: 111101 | E25: Not assigned | F25: 6919.85 | G25: 2049000000
B26: 2051210000111101 | C26: D&A | D26: 111101 | E26: Not assigned | F26: 1897676.87 | G26: 2051210000
B27: 2051260000111101 | C27: D&A | D27: 111101 | E27: Not assigned | F27: 146328.945 | G27: 2051260000
B28: 2060220000111111 | C28: Gains from disposal of PP&E | D28: 111111 | E28: External | F28: -121553.075 | G28: 2060220000
B29: 20690100001 | C29: Corporate recharges | D29: 1 | E29: Greeny Ltd | F29: -1643711.145 | G29: 2069010000
B30: 206901000019 | C30: Corporate recharges | D30: 19 | E30: Generco Cosmetics Ltd | F30: -416278.66 | G30: 2069010000
B31: 20690100001076 | C31: Corporate recharges | D31: 1076 | E31: Generco Trading Ltd | F31: -364243.845 | G31: 2069010000
B32: 20690100001086 | C32: Corporate recharges | D32: 1086 | E32: G&Resources Ltd | F32: 0 | G32: 2069010000
B33: 20690100001009 | C33: Corporate recharges | D33: 1009 | E33: Green Ventures Ltd | F33: 0 | G33: 2069010000
B34: 20690100001007 | C34: Corporate recharges | D34: 1007 | E34: Generco Sunshine JSC | F34: 0 | G34: 2069010000
B35: 20690100001008 | C35: Corporate recharges | D35: 1008 | E35: Greenco Ltd | F35: 0 | G35: 2069010000
B36: 20690100001240 | C36: Corporate recharges | D36: 1240 | E36: Generco UK | F36: -10461.36 | G36: 2069010000
B37: 20690100001007 | C37: Corporate recharges | D37: 1007 | E37: Generco Semiconductors Ltd | F37: 0 | G37: 2069010000
B38: 206901000047037 | C38: Corporate recharges | D38: 47037 | E38: G&CR Global Ltd | F38: -482611.045 | G38: 2069010000
B39: 2069010000111111 | C39: Corporate recharges | D39: 111111 | E39: External | F39: -6785.94 | G39: 2069010000
B40: 206998000088 | C40: Other income | D40: 88 | E40: Generco Ltd | F40: -2436.35 | G40: 2069980000
B41: 2069980000111111 | C41: Other income | D41: 111111 | E41: External | F41: 9793.84 | G41: 2069980000
B42: 2070290000111101 | C42: Concession fees other | D42: 111101 | E42: Not assigned | F42: 81.34 | G42: 2070290000
B43: 2070400000111111 | C43: Marketing expenses | D43: 111111 | E43: External | F43: 65947.7 | G43: 2070400000
B44: 2070500000111111 | C44: Software&IT | D44: 111111 | E44: External | F44: 5138.91 | G44: 2070500000
B45: 2070600000111111 | C45: Leasings | D45: 111111 | E45: External | F45: 1055381.475 | G45: 2070600000
B46: 20709000002240 | C46: Service expenses | D46: 2240 | E46: Greeny Germany GmbH | F46: 430845.345 | G46: 2070900000
B47: 2070900000105 | C47: Service expenses | D47: 105 | E47: Generco Healthcare Ltd | F47: 276920 | G47: 2070900000
B48: 2070900000111111 | C48: Service expenses | D48: 111111 | E48: External | F48: 1130021 | G48: 2070900000
B49: 2071000000111111 | C49: Charges and contributions | D49: 111111 | E49: External | F49: 7293.545 | G49: 2071000000
B50: 20711000001900 | C50: Insurance expenses | D50: 1900 | E50: Generco Metals Gm | F50: 0 | G50: 2071100000
B51: 2071100000111111 | C51: Insurance expenses | D51: 111111 | E51: External | F51: 48468.665 | G51: 2071100000
B52: 20712092001118 | C52: Travel expenses | D52: 1118 | E52: Gener Green LLC | F52: 23928.8 | G52: 2071209200
B53: 2071209200111111 | C53: Travel expenses | D53: 111111 | E53: External | F53: 2393259.19 | G53: 2071209200
B54: 2071209400111111 | C54: Utility expenses | D54: 111111 | E54: External | F54: 23069.655 | G54: 2071209400
B55: 2071209500111111 | C55: Legal expenses | D55: 111111 | E55: External | F55: 208366.935 | G55: 2071209500
B56: 2071220000111111 | C56: Losses fr disposal of PPE | D56: 111111 | E56: External | F56: 308232 | G56: 2071220000
B57: 207151100019 | C57: Other operative currency differences | D57: 19 | E57: Generco Cosmetics Ltd | F57: 13422.78 | G57: 2071511000
B58: 2071511000111111 | C58: Other operative currency differences | D58: 111111 | E58: External | F58: 4045.615 | G58: 2071511000
B59: 2071910000111111 | C59: Property tax | D59: 111111 | E59: External | F59: 49621.145 | G59: 2071910000
B60: 2071980000111101 | C60: Misc costs | D60: 111101 | E60: Not assigned | F60: 20323.31 | G60: 2071980000
B61: 2079022000111111 | C61: Consulting fees | D61: 111111 | E61: External | F61: 169489 | G61: 2079022000
B62: 207907000019 | C62: Misc extraordinary expenses | D62: 19 | E62: Generco Cosmetics Ltd | F62: 85462.685 | G62: 2079070000
B63: 207907000043 | C63: Misc extraordinary expenses | D63: 43 | E63: Greeny France SL | F63: 11422.145 | G63: 2079070000
B64: 20790700001924 | C64: Misc extraordinary expenses | D64: 1924 | E64: Generco Infrastructure Ltd | F64: 84438.865 | G64: 2079070000
B65: 2079070000111111 | C65: Misc extraordinary expenses | D65: 111111 | E65: External | F65: 638869.13 | G65: 2079070000
B66: 20790800001086 | C66: Difference from eliminations | D66: 1086 | E66: G&Resources Ltd | F66: 0 | G66: 2079080000
B67: 20790800001007 | C67: Difference from eliminations | D67: 1007 | E67: Generco Sunshine JSC | F67: 0 | G67: 2079080000
B68: 20790800001008 | C68: Difference from eliminations | D68: 1008 | E68: Greenco Ltd | F68: 0 | G68: 2079080000
B69: 20822800001086 | C69: Interest income | D69: 1086 | E69: G&Resources Ltd | F69: 0 | G69: 2082280000
B70: 20822800001009 | C70: Interest income | D70: 1009 | E70: Green Ventures Ltd | F70: 0 | G70: 2082280000
B71: 20822800001007 | C71: Interest income | D71: 1007 | E71: Generco Sunshine JSC | F71: 0 | G71: 2082280000
B72: 20822800001008 | C72: Interest income | D72: 1008 | E72: Greenco Ltd | F72: 0 | G72: 2082280000
B73: 20822800001240 | C73: Interest income | D73: 1240 | E73: Generco UK | F73: -34224.96 | G73: 2082280000
B74: 20822800001006 | C74: Interest income | D74: 1006 | E74: Generco Mining GmbH | F74: -6778.415 | G74: 2082280000
B75: 20822800001007 | C75: Interest income | D75: 1007 | E75: Generco Semiconductors Ltd | F75: 0 | G75: 2082280000
B76: 2082280000111111 | C76: Interest income | D76: 111111 | E76: External | F76: -2204.72 | G76: 2082280000
B77: 2082208200111101 | C77: Non-recurring costs | D77: 111101 | E77: Not assigned | F77: 80617.18 | G77: 2082208200
B78: 208221400088 | C78: Interest expenses | D78: 88 | E78: Generco Ltd | F78: 2752704.22 | G78: 2082214000
B79: 20822140001007 | C79: Interest expenses | D79: 1007 | E79: Generco Semiconductors Ltd | F79: 0 | G79: 2082214000
B80: 2082214000111111 | C80: Interest expenses | D80: 111111 | E80: External | F80: 1250.795 | G80: 2082214000
B81: 20821100001240 | C81: Impairment of participation | D81: 1240 | E81: Generco UK | F81: 4130000 | G81: 2082110000
B82: 2091200000111101 | C82: Current taxes | D82: 111101 | E82: Not assigned | F82: 496748.7 | G82: 2091200000
B83: 2091200001111101 | C83: Regional taxes | D83: 111101 | E83: Not assigned | F83: 480872.96 | G83: 2091200001
B84: 2091900000111101 | C84: Quarterly changes in current taxes | D84: 111101 | E84: Not assigned | F84: 0 | G84: 2091900000
B85: 2092200000111101 | C85: Deferred taxes | D85: 111101 | E85: Not assigned | F85: 6570.305 | G85: 2092200000
B86: 2111111999111101 | C86: Net income/(loss) | D86: 111101 | E86: Not assigned | F86: 6073808.16 | G86: 2111111999

Sheet 1.3 FY2013
B1: FY2013
B4: Code | C4: P&L account | D4: Partner company | E4: Name of Partner company | F4: Amount | G4: Account Number
B5: 2001110000105 | C5: Core business revenues | D5: 105 | E5: Generco Healthcare Ltd | F5: -616462.019 | G5: 2001110000
B6: 2001110000111111 | C6: Core business revenues | D6: 111111 | E6: External | F6: -14431341 | G6: 2001110000
B7: 2001190000111111 | C7: Other revenues | D7: 111111 | E7: External | F7: -6373617.514 | G7: 2001190000
B8: 2021210000111111 | C8: Utility charges | D8: 111111 | E8: External | F8: 20504.51 | G8: 2021210000
B9: 2021900000111111 | C9: Direct costs | D9: 111111 | E9: External | F9: 5674152.067 | G9: 2021900000
B10: 2024020000111111 | C10: Operating expenses for utilities | D10: 111111 | E10: External | F10: 13691.95 | G10: 2024020000
B11: 2024080000111111 | C11: Freight outbound expenses | D11: 111111 | E11: External | F11: 350370.994 | G11: 2024080000
B12: 202409000088 | C12: R&D expenses | D12: 88 | E12: Generco Ltd | F12: 3116017.154 | G12: 2024090000
B13: 20240900001283 | C13: R&D expenses | D13: 1283 | E13: Generco Ventures Ltd | F13: 0 | G13: 2024090000
B14: 20240900001924 | C14: R&D expenses | D14: 1924 | E14: Generco Infrastructure Ltd | F14: 673.343 | G14: 2024090000
B15: 20240900002185 | C15: R&D expenses | D15: 2185 | E15: Generco Green Projects GmbH | F15: 192017.145 | G15: 2024090000
B16: 20240900002240 | C16: R&D expenses | D16: 2240 | E16: Greeny Germany GmbH | F16: 375290.466 | G16: 2024090000
B17: 202409000017000 | C17: R&D expenses | D17: 17000 | E17: Generco Risk Management Ltd | F17: 4920 | G17: 2024090000
B18: 2024090000111111 | C18: R&D expenses | D18: 111111 | E18: External | F18: 9783.707 | G18: 2024090000
B19: 2041000000111111 | C19: Wages and salaries | D19: 111111 | E19: External | F19: 3982699.533 | G19: 2041000000
B20: 2042000000111101 | C20: Social security payments | D20: 111101 | E20: Not assigned | F20: 1420796.821 | G20: 2042000000
B21: 2042000000111101 | C21: Pension contributions | D21: 111101 | E21: Not assigned | F21: 288891.822 | G21: 2042000000
B22: 2045000000111101 | C22: Severance indemnity contribution | D22: 111101 | E22: Not assigned | F22: 143500 | G22: 2045000000
B23: 2051210000111101 | C23: D&A | D23: 111101 | E23: Not assigned | F23: 1875768.159 | G23: 2051210000
B24: 2051260000111101 | C24: D&A | D24: 111101 | E24: Not assigned | F24: 12593.355 | G24: 2051260000
B25: 20604410001118 | C25: Other operative currency differences | D25: 1118 | E25: Gener Green LLC | F25: 0 | G25: 2060441000
B26: 2060441000111111 | C26: Other operative currency differences | D26: 111111 | E26: External | F26: -1252.837 | G26: 2060441000
B27: 20690100001 | C27: Corporate recharges | D27: 1 | E27: Greeny Ltd | F27: -1418521.358 | G27: 2069010000
B28: 206901000019 | C28: Corporate recharges | D28: 19 | E28: Generco Cosmetics Ltd | F28: -622966.386 | G28: 2069010000
B29: 20690100001076 | C29: Corporate recharges | D29: 1076 | E29: Generco Trading Ltd | F29: 0 | G29: 2069010000
B30: 20690100001086 | C30: Corporate recharges | D30: 1086 | E30: G&Resources Ltd | F30: 0 | G30: 2069010000
B31: 20690100001009 | C31: Corporate recharges | D31: 1009 | E31: Green Ventures Ltd | F31: 0 | G31: 2069010000
B32: 20690100001007 | C32: Corporate recharges | D32: 1007 | E32: Generco Sunshine JSC | F32: 0 | G32: 2069010000
B33: 20690100001008 | C33: Corporate recharges | D33: 1008 | E33: Greenco Ltd | F33: 0 | G33: 2069010000
B34: 20690100001240 | C34: Corporate recharges | D34: 1240 | E34: Generco UK | F34: 0 | G34: 2069010000
B35: 20690100001006 | C35: Corporate recharges | D35: 1006 | E35: Generco Mining GmbH | F35: 0 | G35: 2069010000
B36: 20690100001007 | C36: Corporate recharges | D36: 1007 | E36: Generco Semiconductors Ltd | F36: 0 | G36: 2069010000
B37: 206901000047037 | C37: Corporate recharges | D37: 47037 | E37: G&CR Global Ltd | F37: -1948832.143 | G37: 2069010000
B38: 2069010000111111 | C38: Corporate recharges | D38: 111111 | E38: External | F38: -902857.843 | G38: 2069010000
B39: 2069020000111111 | C39: Reimbursements+compensation for damages | D39: 111111 | E39: External | F39: -61500 | G39: 2069020000
B40: 2069980000105 | C40: Other income | D40: 105 | E40: Generco Healthcare Ltd | F40: -30913.426 | G40: 2069980000
B41: 2069980000111111 | C41: Other income | D41: 111111 | E41: External | F41: -15872.002 | G41: 2069980000
B42: 2070400000111111 | C42: Marketing expenses | D42: 111111 | E42: External | F42: 57.318 | G42: 2070400000
B43: 2070500000111111 | C43: Software&IT | D43: 111111 | E43: External | F43: 19198.66 | G43: 2070500000
B44: 2070600000105 | C44: Leasings | D44: 105 | E44: Generco Healthcare Ltd | F44: -1423120 | G44: 2070600000
B45: 2070600000111111 | C45: Leasings | D45: 111111 | E45: External | F45: -172933.449 | G45: 2070600000
B46: 2070900000105 | C46: Service expenses | D46: 105 | E46: Generco Healthcare Ltd | F46: 473575.461 | G46: 2070900000
B47: 2070900000111111 | C47: Service expenses | D47: 111111 | E47: External | F47: 1481408.47 | G47: 2070900000
B48: 2071000000111111 | C48: Charges and contributions | D48: 111111 | E48: External | F48: 40048.8 | G48: 2071000000
B49: 207110000088 | C49: Insurance expenses | D49: 88 | E49: Generco Ltd | F49: 584.66 | G49: 2071100000
B50: 2071100000111111 | C50: Insurance expenses | D50: 111111 | E50: External | F50: 64039.827 | G50: 2071100000
B51: 2071209100111111 | C51: Repairs/Maintenance costs | D51: 111111 | E51: External | F51: 1353 | G51: 2071209100
B52: 2071209200111111 | C52: Travel expenses | D52: 111111 | E52: External | F52: 2514431.887 | G52: 2071209200
B53: 2071209400111111 | C53: Utility expenses | D53: 111111 | E53: External | F53: 4194.3 | G53: 2071209400
B54: 2071209500111111 | C54: Legal expenses | D54: 111111 | E54: External | F54: 106525.708 | G54: 2071209500
B55: 2071980000111101 | C55: Misc costs | D55: 111101 | E55: Not assigned | F55: 109811.284 | G55: 2071980000
B56: 2079022000111111 | C56: Consulting fees | D56: 111111 | E56: External | F56: 61111.484 | G56: 2079022000
B57: 20790700001924 | C57: Misc extraordinary expenses | D57: 1924 | E57: Generco Infrastructure Ltd | F57: 0 | G57: 2079070000
B58: 2079070000105 | C58: Misc extraordinary expenses | D58: 105 | E58: Generco Healthcare Ltd | F58: 1684415.3 | G58: 2079070000
B59: 2079070000111111 | C59: Misc extraordinary expenses | D59: 111111 | E59: External | F59: 575626.265 | G59: 2079070000
B60: 20790800001086 | C60: Difference from eliminations | D60: 1086 | E60: G&Resources Ltd | F60: 0 | G60: 2079080000
B61: 20790800001007 | C61: Difference from eliminations | D61: 1007 | E61: Generco Semiconductors Ltd | F61: 0 | G61: 2079080000
B62: 20822800001086 | C62: Interest income | D62: 1086 | E62: G&Resources Ltd | F62: 0 | G62: 2082280000
B63: 20822800001009 | C63: Interest income | D63: 1009 | E63: Green Ventures Ltd | F63: 0 | G63: 2082280000
B64: 20822800001007 | C64: Interest income | D64: 1007 | E64: Generco Sunshine JSC | F64: 0 | G64: 2082280000
B65: 20822800001008 | C65: Interest income | D65: 1008 | E65: Greenco Ltd | F65: 0 | G65: 2082280000
B66: 20822800001240 | C66: Interest income | D66: 1240 | E66: Generco UK | F66: 0 | G66: 2082280000
B67: 20822800001006 | C67: Interest income | D67: 1006 | E67: Generco Mining GmbH | F67: 0 | G67: 2082280000
B68: 2082280000111111 | C68: Interest income | D68: 111111 | E68: External | F68: -73809.512 | G68: 2082280000
B69: 2082208200111101 | C69: Non-recurring costs | D69: 111101 | E69: Not assigned | F69: 7173.196 | G69: 2082208200
B70: 208221400088 | C70: Interest expenses | D70: 88 | E70: Generco Ltd | F70: 2324465.886 | G70: 2082214000
B71: 20822140001007 | C71: Interest expenses | D71: 1007 | E71: Generco Semiconductors Ltd | F71: 0 | G71: 2082214000
B72: 2082214000111111 | C72: Interest expenses | D72: 111111 | E72: External | F72: 51.455 | G72: 2082214000
B73: 2082110000111101 | C73: Impairment of participation | D73: 111101 | E73: Not assigned | F73: 0 | G73: 2082110000
B74: 2091200000111101 | C74: Current taxes | D74: 111101 | E74: Not assigned | F74: 2558.195 | G74: 2091200000
B75: 2091200001111101 | C75: Regional taxes | D75: 111101 | E75: Not assigned | F75: 522710.353 | G75: 2091200001
B76: 2092200000111101 | C76: Deferred taxes | D76: 111101 | E76: Not assigned | F76: -160303.522 | G76: 2092200000
B77: 2111111997111101 | C77: Offset segments (tech.) | D77: 111101 | E77: Not assigned | F77: 0 | G77: 2111111997
B78: 2111111999111101 | C78: Net income/(loss) | D78: 111101 | E78: Not assigned | F78: =-1479290.476+700000 -> -779290.476 | G78: 2111111999

Sheet 2. Building a P&L -->
B12: 2. Building a P&L -->

Sheet 2.1 Database
B1: Database
B3: Code | C3: P&L account | D3: Partner company | E3: Name of Partner company | F3: FY11 | G3: FY12 | H3: FY13 | J3: Mapping
B4: 2001110000111111 | C4: =+VLOOKUP($B4,'1.1 FY2011'!$B$5:$E$61,2,FALSE) -> Core business revenues | D4: =+VLOOKUP($B4,'1.1 FY2011'!$B$5:$E$61,3,FALSE) -> 111111 | E4: =+VLOOKUP($B4,'1.1 FY2011'!$B$5:$E$61,4,FALSE) -> External | F4: =-SUMIF('1.1 FY2011'!$B:$B,'2.1 Database'!B4,'1.1 FY2011'!$F:$F) -> 14500341 | G4: =-SUMIF('1.2 FY2012'!$B:$B,'2.1 Database'!B4,'1.2 FY2012'!$F:$F) -> 15792898.75 | H4: =-SUMIF('1.3 FY2013'!$B:$B,'2.1 Database'!B4,'1.3 FY2013'!$F:$F) -> 14431341 | J4: Net Sales | K4: =+COUNTIF('2.2 P&L statement'!$B$4:$B$24,'2.1 Database'!J4) -> 1
B5: 2001190000111111 | C5: =+VLOOKUP($B5,'1.1 FY2011'!$B$5:$E$61,2,FALSE) -> Other revenues | D5: =+VLOOKUP($B5,'1.1 FY2011'!$B$5:$E$61,3,FALSE) -> 111111 | E5: =+VLOOKUP($B5,'1.1 FY2011'!$B$5:$E$61,4,FALSE) -> External | F5: =-SUMIF('1.1 FY2011'!$B:$B,'2.1 Database'!B5,'1.1 FY2011'!$F:$F) -> 4794856.192 | G5: =-SUMIF('1.2 FY2012'!$B:$B,'2.1 Database'!B5,'1.2 FY2012'!$F:$F) -> 6960217.645 | H5: =-SUMIF('1.3 FY2013'!$B:$B,'2.1 Database'!B5,'1.3 FY2013'!$F:$F) -> 6373617.514 | J5: Other revenues | K5: =+COUNTIF('2.2 P&L statement'!$B$4:$B$24,'2.1 Database'!J5) -> 1
B6: 20200000001009 | C6: =+VLOOKUP($B6,'1.1 FY2011'!$B$5:$E$61,2,FALSE) -> Capitalized costs | D6: =+VLOOKUP($B6,'1.1 FY2011'!$B$5:$E$61,3,FALSE) -> 1009 | E6: =+VLOOKUP($B6,'1.1 FY2011'!$B$5:$E$61,4,FALSE) -> Green Ventures Ltd | F6: =-SUMIF('1.1 FY2011'!$B:$B,'2.1 Database'!B6,'1.1 FY2011'!$F:$F) -> 154890.4 | G6: =-SUMIF('1.2 FY2012'!$B:$B,'2.1 Database'!B6,'1.2 FY2012'!$F:$F) -> 0 | H6: =-SUMIF('1.3 FY2013'!$B:$B,'2.1 Database'!B6,'1.3 FY2013'!$F:$F) -> 0 | J6: Capitalized costs | K6: =+COUNTIF('2.2 P&L statement'!$B$4:$B$24,'2.1 Database'!J6) -> 1
B7: 20200000001007 | C7: =+VLOOKUP($B7,'1.1 FY2011'!$B$5:$E$61,2,FALSE) -> Capitalized costs | D7: =+VLOOKUP($B7,'1.1 FY2011'!$B$5:$E$61,3,FALSE) -> 1007 | E7: =+VLOOKUP($B7,'1.1 FY2011'!$B$5:$E$61,4,FALSE) -> Generco Sunshine JSC | F7: =-SUMIF('1.1 FY2011'!$B:$B,'2.1 Database'!B7,'1.1 FY2011'!$F:$F) -> 1180894.052 | G7: =-SUMIF('1.2 FY2012'!$B:$B,'2.1 Database'!B7,'1.2 FY2012'!$F:$F) -> 89234.88 | H7: =-SUMIF('1.3 FY2013'!$B:$B,'2.1 Database'!B7,'1.3 FY2013'!$F:$F) -> 0 | J7: Capitalized costs | K7: =+COUNTIF('2.2 P&L statement'!$B$4:$B$24,'2.1 Database'!J7) -> 1
B8: 20200000001008 | C8: =+VLOOKUP($B8,'1.1 FY2011'!$B$5:$E$61,2,FALSE) -> Capitalized costs | D8: =+VLOOKUP($B8,'1.1 FY2011'!$B$5:$E$61,3,FALSE) -> 1008 | E8: =+VLOOKUP($B8,'1.1 FY2011'!$B$5:$E$61,4,FALSE) -> Greenco Ltd | F8: =-SUMIF('1.1 FY2011'!$B:$B,'2.1 Database'!B8,'1.1 FY2011'!$F:$F) -> 793079.512 | G8: =-SUMIF('1.2 FY2012'!$B:$B,'2.1 Database'!B8,'1.2 FY2012'!$F:$F) -> 26173 | H8: =-SUMIF('1.3 FY2013'!$B:$B,'2.1 Database'!B8,'1.3 FY2013'!$F:$F) -> 0 | J8: Capitalized costs | K8: =+COUNTIF('2.2 P&L statement'!$B$4:$B$24,'2.1 Database'!J8) -> 1
B9: 2020000000111101 | C9: =+VLOOKUP($B9,'1.1 FY2011'!$B$5:$E$61,2,FALSE) -> Capitalized costs | D9: =+VLOOKUP($B9,'1.1 FY2011'!$B$5:$E$61,3,FALSE) -> 111101 | E9: =+VLOOKUP($B9,'1.1 FY2011'!$B$5:$E$61,4,FALSE) -> Not assigned | F9: =-SUMIF('1.1 FY2011'!$B:$B,'2.1 Database'!B9,'1.1 FY2011'!$F:$F) -> 2277197.6 | G9: =-SUMIF('1.2 FY2012'!$B:$B,'2.1 Database'!B9,'1.2 FY2012'!$F:$F) -> 209401.92 | H9: =-SUMIF('1.3 FY2013'!$B:$B,'2.1 Database'!B9,'1.3 FY2013'!$F:$F) -> 0 | J9: Capitalized costs | K9: =+COUNTIF('2.2 P&L statement'!$B$4:$B$24,'2.1 Database'!J9) -> 1
B10: 2021900000111111 | C10: =+VLOOKUP($B10,'1.1 FY2011'!$B$5:$E$61,2,FALSE) -> Direct costs | D10: =+VLOOKUP($B10,'1.1 FY2011'!$B$5:$E$61,3,FALSE) -> 111111 | E10: =+VLOOKUP($B10,'1.1 FY2011'!$B$5:$E$61,4,FALSE) -> External | F10: =-SUMIF('1.1 FY2011'!$B:$B,'2.1 Database'!B10,'1.1 FY2011'!$F:$F) -> -4428911.764 | G10: =-SUMIF('1.2 FY2012'!$B:$B,'2.1 Database'!B10,'1.2 FY2012'!$F:$F) -> -5463188.825 | H10: =-SUMIF('1.3 FY2013'!$B:$B,'2.1 Database'!B10,'1.3 FY2013'!$F:$F) -> -5674152.067 | J10: Direct costs | K10: =+COUNTIF('2.2 P&L statement'!$B$4:$B$24,'2.1 Database'!J10) -> 1
B11: 2024080000111111 | C11: =+VLOOKUP($B11,'1.1 FY2011'!$B$5:$E$61,2,FALSE) -> Freight outbound expenses | D11: =+VLOOKUP($B11,'1.1 FY2011'!$B$5:$E$61,3,FALSE) -> 111111 | E11: =+VLOOKUP($B11,'1.1 FY2011'!$B$5:$E$61,4,FALSE) -> External | F11: =-SUMIF('1.1 FY2011'!$B:$B,'2.1 Database'!B11,'1.1 FY2011'!$F:$F) -> -16977.628 | G11: =-SUMIF('1.2 FY2012'!$B:$B,'2.1 Database'!B11,'1.2 FY2012'!$F:$F) -> -343675 | H11: =-SUMIF('1.3 FY2013'!$B:$B,'2.1 Database'!B11,'1.3 FY2013'!$F:$F) -> -350370.994 | J11: Other operating expenses | K11: =+COUNTIF('2.2 P&L statement'!$B$4:$B$24,'2.1 Database'!J11) -> 1
B12: 202409000088 | C12: =+VLOOKUP($B12,'1.1 FY2011'!$B$5:$E$61,2,FALSE) -> R&D expenses | D12: =+VLOOKUP($B12,'1.1 FY2011'!$B$5:$E$61,3,FALSE) -> 88 | E12: =+VLOOKUP($B12,'1.1 FY2011'!$B$5:$E$61,4,FALSE) -> Generco Ltd | F12: =-SUMIF('1.1 FY2011'!$B:$B,'2.1 Database'!B12,'1.1 FY2011'!$F:$F) -> -2245437.54 | G12: =-SUMIF('1.2 FY2012'!$B:$B,'2.1 Database'!B12,'1.2 FY2012'!$F:$F) -> -1980162.23 | H12: =-SUMIF('1.3 FY2013'!$B:$B,'2.1 Database'!B12,'1.3 FY2013'!$F:$F) -> -3116017.154 | J12: Other operating expenses | K12: =+COUNTIF('2.2 P&L statement'!$B$4:$B$24,'2.1 Database'!J12) -> 1
B13: 2024090000111111 | C13: =+VLOOKUP($B13,'1.1 FY2011'!$B$5:$E$61,2,FALSE) -> R&D expenses | D13: =+VLOOKUP($B13,'1.1 FY2011'!$B$5:$E$61,3,FALSE) -> 111111 | E13: =+VLOOKUP($B13,'1.1 FY2011'!$B$5:$E$61,4,FALSE) -> External | F13: =-SUMIF('1.1 FY2011'!$B:$B,'2.1 Database'!B13,'1.1 FY2011'!$F:$F) -> -16605.634 | G13: =-SUMIF('1.2 FY2012'!$B:$B,'2.1 Database'!B13,'1.2 FY2012'!$F:$F) -> -27148.625 | H13: =-SUMIF('1.3 FY2013'!$B:$B,'2.1 Database'!B13,'1.3 FY2013'!$F:$F) -> -9783.707 | J13: Other operating expenses | K13: =+COUNTIF('2.2 P&L statement'!$B$4:$B$24,'2.1 Database'!J13) -> 1
B14: 2041000000111111 | C14: =+VLOOKUP($B14,'1.1 FY2011'!$B$5:$E$61,2,FALSE) -> Wages and salaries | D14: =+VLOOKUP($B14,'1.1 FY2011'!$B$5:$E$61,3,FALSE) -> 111111 | E14: =+VLOOKUP($B14,'1.1 FY2011'!$B$5:$E$61,4,FALSE) -> External | F14: =-SUMIF('1.1 FY2011'!$B:$B,'2.1 Database'!B14,'1.1 FY2011'!$F:$F) -> -4683394.046 | G14: =-SUMIF('1.2 FY2012'!$B:$B,'2.1 Database'!B14,'1.2 FY2012'!$F:$F) -> -5507141.055 | H14: =-SUMIF('1.3 FY2013'!$B:$B,'2.1 Database'!B14,'1.3 FY2013'!$F:$F) -> -3982699.533 | J14: Personnel expenses | K14: =+COUNTIF('2.2 P&L statement'!$B$4:$B$24,'2.1 Database'!J14) -> 1
B15: 2042000000111101 | C15: =+VLOOKUP($B15,'1.1 FY2011'!$B$5:$E$61,2,FALSE) -> Pension contributions | D15: =+VLOOKUP($B15,'1.1 FY2011'!$B$5:$E$61,3,FALSE) -> 111101 | E15: =+VLOOKUP($B15,'1.1 FY2011'!$B$5:$E$61,4,FALSE) -> Not assigned | F15: =-SUMIF('1.1 FY2011'!$B:$B,'2.1 Database'!B15,'1.1 FY2011'!$F:$F) -> -1143051.576 | G15: =-SUMIF('1.2 FY2012'!$B:$B,'2.1 Database'!B15,'1.2 FY2012'!$F:$F) -> -2057298.04 | H15: =-SUMIF('1.3 FY2013'!$B:$B,'2.1 Database'!B15,'1.3 FY2013'!$F:$F) -> -1709688.643 | J15: Personnel expenses | K15: =+COUNTIF('2.2 P&L statement'!$B$4:$B$24,'2.1 Database'!J15) -> 1
B16: 204200000088 | C16: =+VLOOKUP($B16,'1.1 FY2011'!$B$5:$E$61,2,FALSE) -> Pension contributions | D16: =+VLOOKUP($B16,'1.1 FY2011'!$B$5:$E$61,3,FALSE) -> 88 | E16: =+VLOOKUP($B16,'1.1 FY2011'!$B$5:$E$61,4,FALSE) -> Generco Ltd | F16: =-SUMIF('1.1 FY2011'!$B:$B,'2.1 Database'!B16,'1.1 FY2011'!$F:$F) -> -239379.618 | G16: =-SUMIF('1.2 FY2012'!$B:$B,'2.1 Database'!B16,'1.2 FY2012'!$F:$F) -> 0 | H16: =-SUMIF('1.3 FY2013'!$B:$B,'2.1 Database'!B16,'1.3 FY2013'!$F:$F) -> 0 | J16: Personnel expenses | K16: =+COUNTIF('2.2 P&L statement'!$B$4:$B$24,'2.1 Database'!J16) -> 1
B17: 2045000000111101 | C17: =+VLOOKUP($B17,'1.1 FY2011'!$B$5:$E$61,2,FALSE) -> Severance indemnity contribution | D17: =+VLOOKUP($B17,'1.1 FY2011'!$B$5:$E$61,3,FALSE) -> 111101 | E17: =+VLOOKUP($B17,'1.1 FY2011'!$B$5:$E$61,4,FALSE) -> Not assigned | F17: =-SUMIF('1.1 FY2011'!$B:$B,'2.1 Database'!B17,'1.1 FY2011'!$F:$F) -> -104913.8 | G17: =-SUMIF('1.2 FY2012'!$B:$B,'2.1 Database'!B17,'1.2 FY2012'!$F:$F) -> -500500 | H17: =-SUMIF('1.3 FY2013'!$B:$B,'2.1 Database'!B17,'1.3 FY2013'!$F:$F) -> -143500 | J17: Personnel expenses | K17: =+COUNTIF('2.2 P&L statement'!$B$4:$B$24,'2.1 Database'!J17) -> 1
B18: 2051210000111101 | C18: =+VLOOKUP($B18,'1.1 FY2011'!$B$5:$E$61,2,FALSE) -> D&A | D18: =+VLOOKUP($B18,'1.1 FY2011'!$B$5:$E$61,3,FALSE) -> 111101 | E18: =+VLOOKUP($B18,'1.1 FY2011'!$B$5:$E$61,4,FALSE) -> Not assigned | F18: =-SUMIF('1.1 FY2011'!$B:$B,'2.1 Database'!B18,'1.1 FY2011'!$F:$F) -> -2003262.218 | G18: =-SUMIF('1.2 FY2012'!$B:$B,'2.1 Database'!B18,'1.2 FY2012'!$F:$F) -> -1897676.87 | H18: =-SUMIF('1.3 FY2013'!$B:$B,'2.1 Database'!B18,'1.3 FY2013'!$F:$F) -> -1875768.159 | J18: D&A | K18: =+COUNTIF('2.2 P&L statement'!$B$4:$B$24,'2.1 Database'!J18) -> 1
B19: 2051260000111101 | C19: =+VLOOKUP($B19,'1.1 FY2011'!$B$5:$E$61,2,FALSE) -> D&A | D19: =+VLOOKUP($B19,'1.1 FY2011'!$B$5:$E$61,3,FALSE) -> 111101 | E19: =+VLOOKUP($B19,'1.1 FY2011'!$B$5:$E$61,4,FALSE) -> Not assigned | F19: =-SUMIF('1.1 FY2011'!$B:$B,'2.1 Database'!B19,'1.1 FY2011'!$F:$F) -> -41981.296 | G19: =-SUMIF('1.2 FY2012'!$B:$B,'2.1 Database'!B19,'1.2 FY2012'!$F:$F) -> -146328.945 | H19: =-SUMIF('1.3 FY2013'!$B:$B,'2.1 Database'!B19,'1.3 FY2013'!$F:$F) -> -12593.355 | J19: D&A | K19: =+COUNTIF('2.2 P&L statement'!$B$4:$B$24,'2.1 Database'!J19) -> 1
B20: 20690100001 | C20: =+VLOOKUP($B20,'1.1 FY2011'!$B$5:$E$61,2,FALSE) -> Corporate recharges | D20: =+VLOOKUP($B20,'1.1 FY2011'!$B$5:$E$61,3,FALSE) -> 1 | E20: =+VLOOKUP($B20,'1.1 FY2011'!$B$5:$E$61,4,FALSE) -> Greeny Ltd | F20: =-SUMIF('1.1 FY2011'!$B:$B,'2.1 Database'!B20,'1.1 FY2011'!$F:$F) -> 2156147.4 | G20: =-SUMIF('1.2 FY2012'!$B:$B,'2.1 Database'!B20,'1.2 FY2012'!$F:$F) -> 1643711.145 | H20: =-SUMIF('1.3 FY2013'!$B:$B,'2.1 Database'!B20,'1.3 FY2013'!$F:$F) -> 1418521.358 | J20: Recharges | K20: =+COUNTIF('2.2 P&L statement'!$B$4:$B$24,'2.1 Database'!J20) -> 1
B21: 206901000014 | C21: =+VLOOKUP($B21,'1.1 FY2011'!$B$5:$E$61,2,FALSE) -> Corporate recharges | D21: =+VLOOKUP($B21,'1.1 FY2011'!$B$5:$E$61,3,FALSE) -> 14 | E21: =+VLOOKUP($B21,'1.1 FY2011'!$B$5:$E$61,4,FALSE) -> Generco Cosmetics Ltd | F21: =-SUMIF('1.1 FY2011'!$B:$B,'2.1 Database'!B21,'1.1 FY2011'!$F:$F) -> 291428.552 | G21: =-SUMIF('1.2 FY2012'!$B:$B,'2.1 Database'!B21,'1.2 FY2012'!$F:$F) -> 0 | H21: =-SUMIF('1.3 FY2013'!$B:$B,'2.1 Database'!B21,'1.3 FY2013'!$F:$F) -> 0 | J21: Recharges | K21: =+COUNTIF('2.2 P&L statement'!$B$4:$B$24,'2.1 Database'!J21) -> 1
B22: 20690100001037 | C22: =+VLOOKUP($B22,'1.1 FY2011'!$B$5:$E$61,2,FALSE) -> Corporate recharges | D22: =+VLOOKUP($B22,'1.1 FY2011'!$B$5:$E$61,3,FALSE) -> 1037 | E22: =+VLOOKUP($B22,'1.1 FY2011'!$B$5:$E$61,4,FALSE) -> Generco Canada JSC | F22: =-SUMIF('1.1 FY2011'!$B:$B,'2.1 Database'!B22,'1.1 FY2011'!$F:$F) -> 0 | G22: =-SUMIF('1.2 FY2012'!$B:$B,'2.1 Database'!B22,'1.2 FY2012'!$F:$F) -> 0 | H22: =-SUMIF('1.3 FY2013'!$B:$B,'2.1 Database'!B22,'1.3 FY2013'!$F:$F) -> 0 | J22: Recharges | K22: =+COUNTIF('2.2 P&L statement'!$B$4:$B$24,'2.1 Database'!J22) -> 1
B23: 20690100001087 | C23: =+VLOOKUP($B23,'1.1 FY2011'!$B$5:$E$61,2,FALSE) -> Corporate recharges | D23: =+VLOOKUP($B23,'1.1 FY2011'!$B$5:$E$61,3,FALSE) -> 1087 | E23: =+VLOOKUP($B23,'1.1 FY2011'!$B$5:$E$61,4,FALSE) -> Gener Beauty GmbH | F23: =-SUMIF('1.1 FY2011'!$B:$B,'2.1 Database'!B23,'1.1 FY2011'!$F:$F) -> 33736.5 | G23: =-SUMIF('1.2 FY2012'!$B:$B,'2.1 Database'!B23,'1.2 FY2012'!$F:$F) -> 0 | H23: =-SUMIF('1.3 FY2013'!$B:$B,'2.1 Database'!B23,'1.3 FY2013'!$F:$F) -> 0 | J23: Recharges | K23: =+COUNTIF('2.2 P&L statement'!$B$4:$B$24,'2.1 Database'!J23) -> 1
B24: 20690100001009 | C24: =+VLOOKUP($B24,'1.1 FY2011'!$B$5:$E$61,2,FALSE) -> Corporate recharges | D24: =+VLOOKUP($B24,'1.1 FY2011'!$B$5:$E$61,3,FALSE) -> 1009 | E24: =+VLOOKUP($B24,'1.1 FY2011'!$B$5:$E$61,4,FALSE) -> Green Ventures Ltd | F24: =-SUMIF('1.1 FY2011'!$B:$B,'2.1 Database'!B24,'1.1 FY2011'!$F:$F) -> 0 | G24: =-SUMIF('1.2 FY2012'!$B:$B,'2.1 Database'!B24,'1.2 FY2012'!$F:$F) -> 0 | H24: =-SUMIF('1.3 FY2013'!$B:$B,'2.1 Database'!B24,'1.3 FY2013'!$F:$F) -> 0 | J24: Recharges | K24: =+COUNTIF('2.2 P&L statement'!$B$4:$B$24,'2.1 Database'!J24) -> 1
B25: 20690100001007 | C25: =+VLOOKUP($B25,'1.1 FY2011'!$B$5:$E$61,2,FALSE) -> Corporate recharges | D25: =+VLOOKUP($B25,'1.1 FY2011'!$B$5:$E$61,3,FALSE) -> 1007 | E25: =+VLOOKUP($B25,'1.1 FY2011'!$B$5:$E$61,4,FALSE) -> Generco Sunshine JSC | F25: =-SUMIF('1.1 FY2011'!$B:$B,'2.1 Database'!B25,'1.1 FY2011'!$F:$F) -> 0 | G25: =-SUMIF('1.2 FY2012'!$B:$B,'2.1 Database'!B25,'1.2 FY2012'!$F:$F) -> 0 | H25: =-SUMIF('1.3 FY2013'!$B:$B,'2.1 Database'!B25,'1.3 FY2013'!$F:$F) -> 0 | J25: Recharges | K25: =+COUNTIF('2.2 P&L statement'!$B$4:$B$24,'2.1 Database'!J25) -> 1
B26: 20690100001008 | C26: =+VLOOKUP($B26,'1.1 FY2011'!$B$5:$E$61,2,FALSE) -> Corporate recharges | D26: =+VLOOKUP($B26,'1.1 FY2011'!$B$5:$E$61,3,FALSE) -> 1008 | E26: =+VLOOKUP($B26,'1.1 FY2011'!$B$5:$E$61,4,FALSE) -> Greenco Ltd | F26: =-SUMIF('1.1 FY2011'!$B:$B,'2.1 Database'!B26,'1.1 FY2011'!$F:$F) -> 0 | G26: =-SUMIF('1.2 FY2012'!$B:$B,'2.1 Database'!B26,'1.2 FY2012'!$F:$F) -> 0 | H26: =-SUMIF('1.3 FY2013'!$B:$B,'2.1 Database'!B26,'1.3 FY2013'!$F:$F) -> 0 | J26: Recharges | K26: =+COUNTIF('2.2 P&L statement'!$B$4:$B$24,'2.1 Database'!J26) -> 1
B27: 20690100001240 | C27: =+VLOOKUP($B27,'1.1 FY2011'!$B$5:$E$61,2,FALSE) -> Corporate recharges | D27: =+VLOOKUP($B27,'1.1 FY2011'!$B$5:$E$61,3,FALSE) -> 1240 | E27: =+VLOOKUP($B27,'1.1 FY2011'!$B$5:$E$61,4,FALSE) -> Generco UK | F27: =-SUMIF('1.1 FY2011'!$B:$B,'2.1 Database'!B27,'1.1 FY2011'!$F:$F) -> 199600.4 | G27: =-SUMIF('1.2 FY2012'!$B:$B,'2.1 Database'!B27,'1.2 FY2012'!$F:$F) -> 10461.36 | H27: =-SUMIF('1.3 FY2013'!$B:$B,'2.1 Database'!B27,'1.3 FY2013'!$F:$F) -> 0 | J27: Recharges | K27: =+COUNTIF('2.2 P&L statement'!$B$4:$B$24,'2.1 Database'!J27) -> 1
B28: 2069010000111111 | C28: =+VLOOKUP($B28,'1.1 FY2011'!$B$5:$E$61,2,FALSE) -> Corporate recharges | D28: =+VLOOKUP($B28,'1.1 FY2011'!$B$5:$E$61,3,FALSE) -> 111111 | E28: =+VLOOKUP($B28,'1.1 FY2011'!$B$5:$E$61,4,FALSE) -> External | F28: =-SUMIF('1.1 FY2011'!$B:$B,'2.1 Database'!B28,'1.1 FY2011'!$F:$F) -> 539141.4 | G28: =-SUMIF('1.2 FY2012'!$B:$B,'2.1 Database'!B28,'1.2 FY2012'!$F:$F) -> 6785.94 | H28: =-SUMIF('1.3 FY2013'!$B:$B,'2.1 Database'!B28,'1.3 FY2013'!$F:$F) -> 902857.843 | J28: Recharges | K28: =+COUNTIF('2.2 P&L statement'!$B$4:$B$24,'2.1 Database'!J28) -> 1
B29: 2069980000111111 | C29: =+VLOOKUP($B29,'1.1 FY2011'!$B$5:$E$61,2,FALSE) -> Other income | D29: =+VLOOKUP($B29,'1.1 FY2011'!$B$5:$E$61,3,FALSE) -> 111111 | E29: =+VLOOKUP($B29,'1.1 FY2011'!$B$5:$E$61,4,FALSE) -> External | F29: =-SUMIF('1.1 FY2011'!$B:$B,'2.1 Database'!B29,'1.1 FY2011'!$F:$F) -> 57.222 | G29: =-SUMIF('1.2 FY2012'!$B:$B,'2.1 Database'!B29,'1.2 FY2012'!$F:$F) -> -9793.84 | H29: =-SUMIF('1.3 FY2013'!$B:$B,'2.1 Database'!B29,'1.3 FY2013'!$F:$F) -> 15872.002 | J29: Other income | K29: =+COUNTIF('2.2 P&L statement'!$B$4:$B$24,'2.1 Database'!J29) -> 1
B30: 2070400000111111 | C30: =+VLOOKUP($B30,'1.1 FY2011'!$B$5:$E$61,2,FALSE) -> Marketing expenses | D30: =+VLOOKUP($B30,'1.1 FY2011'!$B$5:$E$61,3,FALSE) -> 111111 | E30: =+VLOOKUP($B30,'1.1 FY2011'!$B$5:$E$61,4,FALSE) -> External | F30: =-SUMIF('1.1 FY2011'!$B:$B,'2.1 Database'!B30,'1.1 FY2011'!$F:$F) -> -22314.88 | G30: =-SUMIF('1.2 FY2012'!$B:$B,'2.1 Database'!B30,'1.2 FY2012'!$F:$F) -> -65947.7 | H30: =-SUMIF('1.3 FY2013'!$B:$B,'2.1 Database'!B30,'1.3 FY2013'!$F:$F) -> -57.318 | J30: Other operating expenses | K30: =+COUNTIF('2.2 P&L statement'!$B$4:$B$24,'2.1 Database'!J30) -> 1
B31: 207050000088 | C31: =+VLOOKUP($B31,'1.1 FY2011'!$B$5:$E$61,2,FALSE) -> Software&IT | D31: =+VLOOKUP($B31,'1.1 FY2011'!$B$5:$E$61,3,FALSE) -> 88 | E31: =+VLOOKUP($B31,'1.1 FY2011'!$B$5:$E$61,4,FALSE) -> Generco Ltd | F31: =-SUMIF('1.1 FY2011'!$B:$B,'2.1 Database'!B31,'1.1 FY2011'!$F:$F) -> -204000 | G31: =-SUMIF('1.2 FY2012'!$B:$B,'2.1 Database'!B31,'1.2 FY2012'!$F:$F) -> 0 | H31: =-SUMIF('1.3 FY2013'!$B:$B,'2.1 Database'!B31,'1.3 FY2013'!$F:$F) -> 0 | J31: Other operating expenses | K31: =+COUNTIF('2.2 P&L statement'!$B$4:$B$24,'2.1 Database'!J31) -> 1
B32: 2070500000111111 | C32: =+VLOOKUP($B32,'1.1 FY2011'!$B$5:$E$61,2,FALSE) -> Software&IT | D32: =+VLOOKUP($B32,'1.1 FY2011'!$B$5:$E$61,3,FALSE) -> 111111 | E32: =+VLOOKUP($B32,'1.1 FY2011'!$B$5:$E$61,4,FALSE) -> External | F32: =-SUMIF('1.1 FY2011'!$B:$B,'2.1 Database'!B32,'1.1 FY2011'!$F:$F) -> -138.414 | G32: =-SUMIF('1.2 FY2012'!$B:$B,'2.1 Database'!B32,'1.2 FY2012'!$F:$F) -> -5138.91 | H32: =-SUMIF('1.3 FY2013'!$B:$B,'2.1 Database'!B32,'1.3 FY2013'!$F:$F) -> -19198.66 | J32: Other operating expenses | K32: =+COUNTIF('2.2 P&L statement'!$B$4:$B$24,'2.1 Database'!J32) -> 1
B33: 2070600000111111 | C33: =+VLOOKUP($B33,'1.1 FY2011'!$B$5:$E$61,2,FALSE) -> Leasings | D33: =+VLOOKUP($B33,'1.1 FY2011'!$B$5:$E$61,3,FALSE) -> 111111 | E33: =+VLOOKUP($B33,'1.1 FY2011'!$B$5:$E$61,4,FALSE) -> External | F33: =-SUMIF('1.1 FY2011'!$B:$B,'2.1 Database'!B33,'1.1 FY2011'!$F:$F) -> -1127445.872 | G33: =-SUMIF('1.2 FY2012'!$B:$B,'2.1 Database'!B33,'1.2 FY2012'!$F:$F) -> -1055381.475 | H33: =-SUMIF('1.3 FY2013'!$B:$B,'2.1 Database'!B33,'1.3 FY2013'!$F:$F) -> 172933.449 | J33: Leasing | K33: =+COUNTIF('2.2 P&L statement'!$B$4:$B$24,'2.1 Database'!J33) -> 1
B34: 207090000043 | C34: =+VLOOKUP($B34,'1.1 FY2011'!$B$5:$E$61,2,FALSE) -> Service expenses | D34: =+VLOOKUP($B34,'1.1 FY2011'!$B$5:$E$61,3,FALSE) -> 43 | E34: =+VLOOKUP($B34,'1.1 FY2011'!$B$5:$E$61,4,FALSE) -> Greeny France SL | F34: =-SUMIF('1.1 FY2011'!$B:$B,'2.1 Database'!B34,'1.1 FY2011'!$F:$F) -> -133722 | G34: =-SUMIF('1.2 FY2012'!$B:$B,'2.1 Database'!B34,'1.2 FY2012'!$F:$F) -> 0 | H34: =-SUMIF('1.3 FY2013'!$B:$B,'2.1 Database'!B34,'1.3 FY2013'!$F:$F) -> 0 | J34: Services | K34: =+COUNTIF('2.2 P&L statement'!$B$4:$B$24,'2.1 Database'!J34) -> 1
B35: 20709000002240 | C35: =+VLOOKUP($B35,'1.1 FY2011'!$B$5:$E$61,2,FALSE) -> Service expenses | D35: =+VLOOKUP($B35,'1.1 FY2011'!$B$5:$E$61,3,FALSE) -> 2240 | E35: =+VLOOKUP($B35,'1.1 FY2011'!$B$5:$E$61,4,FALSE) -> Greeny Germany GmbH | F35: =-SUMIF('1.1 FY2011'!$B:$B,'2.1 Database'!B35,'1.1 FY2011'!$F:$F) -> -328061.886 | G35: =-SUMIF('1.2 FY2012'!$B:$B,'2.1 Database'!B35,'1.2 FY2012'!$F:$F) -> -430845.345 | H35: =-SUMIF('1.3 FY2013'!$B:$B,'2.1 Database'!B35,'1.3 FY2013'!$F:$F) -> 0 | J35: Services | K35: =+COUNTIF('2.2 P&L statement'!$B$4:$B$24,'2.1 Database'!J35) -> 1
B36: 2070900000111111 | C36: =+VLOOKUP($B36,'1.1 FY2011'!$B$5:$E$61,2,FALSE) -> Service expenses | D36: =+VLOOKUP($B36,'1.1 FY2011'!$B$5:$E$61,3,FALSE) -> 111111 | E36: =+VLOOKUP($B36,'1.1 FY2011'!$B$5:$E$61,4,FALSE) -> External | F36: =-SUMIF('1.1 FY2011'!$B:$B,'2.1 Database'!B36,'1.1 FY2011'!$F:$F) -> -2081304.322 | G36: =-SUMIF('1.2 FY2012'!$B:$B,'2.1 Database'!B36,'1.2 FY2012'!$F:$F) -> -1130021 | H36: =-SUMIF('1.3 FY2013'!$B:$B,'2.1 Database'!B36,'1.3 FY2013'!$F:$F) -> -1481408.47 | J36: Services | K36: =+COUNTIF('2.2 P&L statement'!$B$4:$B$24,'2.1 Database'!J36) -> 1
B37: 2071000000111111 | C37: =+VLOOKUP($B37,'1.1 FY2011'!$B$5:$E$61,2,FALSE) -> Charges and contributions | D37: =+VLOOKUP($B37,'1.1 FY2011'!$B$5:$E$61,3,FALSE) -> 111111 | E37: =+VLOOKUP($B37,'1.1 FY2011'!$B$5:$E$61,4,FALSE) -> External | F37: =-SUMIF('1.1 FY2011'!$B:$B,'2.1 Database'!B37,'1.1 FY2011'!$F:$F) -> -33410.032 | G37: =-SUMIF('1.2 FY2012'!$B:$B,'2.1 Database'!B37,'1.2 FY2012'!$F:$F) -> -7293.545 | H37: =-SUMIF('1.3 FY2013'!$B:$B,'2.1 Database'!B37,'1.3 FY2013'!$F:$F) -> -40048.8 | J37: Other operating expenses | K37: =+COUNTIF('2.2 P&L statement'!$B$4:$B$24,'2.1 Database'!J37) -> 1
B38: 2071100000111111 | C38: =+VLOOKUP($B38,'1.1 FY2011'!$B$5:$E$61,2,FALSE) -> Insurance expenses | D38: =+VLOOKUP($B38,'1.1 FY2011'!$B$5:$E$61,3,FALSE) -> 111111 | E38: =+VLOOKUP($B38,'1.1 FY2011'!$B$5:$E$61,4,FALSE) -> External | F38: =-SUMIF('1.1 FY2011'!$B:$B,'2.1 Database'!B38,'1.1 FY2011'!$F:$F) -> -213090.852 | G38: =-SUMIF('1.2 FY2012'!$B:$B,'2.1 Database'!B38,'1.2 FY2012'!$F:$F) -> -48468.665 | H38: =-SUMIF('1.3 FY2013'!$B:$B,'2.1 Database'!B38,'1.3 FY2013'!$F:$F) -> -64039.827 | J38: Other operating expenses | K38: =+COUNTIF('2.2 P&L statement'!$B$4:$B$24,'2.1 Database'!J38) -> 1
B39: 2071209200111111 | C39: =+VLOOKUP($B39,'1.1 FY2011'!$B$5:$E$61,2,FALSE) -> Travel expenses | D39: =+VLOOKUP($B39,'1.1 FY2011'!$B$5:$E$61,3,FALSE) -> 111111 | E39: =+VLOOKUP($B39,'1.1 FY2011'!$B$5:$E$61,4,FALSE) -> External | F39: =-SUMIF('1.1 FY2011'!$B:$B,'2.1 Database'!B39,'1.1 FY2011'!$F:$F) -> -1813525.004 | G39: =-SUMIF('1.2 FY2012'!$B:$B,'2.1 Database'!B39,'1.2 FY2012'!$F:$F) -> -2393259.19 | H39: =-SUMIF('1.3 FY2013'!$B:$B,'2.1 Database'!B39,'1.3 FY2013'!$F:$F) -> -2514431.887 | J39: Travel costs | K39: =+COUNTIF('2.2 P&L statement'!$B$4:$B$24,'2.1 Database'!J39) -> 1
B40: 2071209400111111 | C40: =+VLOOKUP($B40,'1.1 FY2011'!$B$5:$E$61,2,FALSE) -> Utility expenses | D40: =+VLOOKUP($B40,'1.1 FY2011'!$B$5:$E$61,3,FALSE) -> 111111 | E40: =+VLOOKUP($B40,'1.1 FY2011'!$B$5:$E$61,4,FALSE) -> External | F40: =-SUMIF('1.1 FY2011'!$B:$B,'2.1 Database'!B40,'1.1 FY2011'!$F:$F) -> -5552.2 | G40: =-SUMIF('1.2 FY2012'!$B:$B,'2.1 Database'!B40,'1.2 FY2012'!$F:$F) -> -23069.655 | H40: =-SUMIF('1.3 FY2013'!$B:$B,'2.1 Database'!B40,'1.3 FY2013'!$F:$F) -> -4194.3 | J40: Other operating expenses | K40: =+COUNTIF('2.2 P&L statement'!$B$4:$B$24,'2.1 Database'!J40) -> 1
B41: 2071209500111111 | C41: =+VLOOKUP($B41,'1.1 FY2011'!$B$5:$E$61,2,FALSE) -> Legal expenses | D41: =+VLOOKUP($B41,'1.1 FY2011'!$B$5:$E$61,3,FALSE) -> 111111 | E41: =+VLOOKUP($B41,'1.1 FY2011'!$B$5:$E$61,4,FALSE) -> External | F41: =-SUMIF('1.1 FY2011'!$B:$B,'2.1 Database'!B41,'1.1 FY2011'!$F:$F) -> -43868.976 | G41: =-SUMIF('1.2 FY2012'!$B:$B,'2.1 Database'!B41,'1.2 FY2012'!$F:$F) -> -208366.935 | H41: =-SUMIF('1.3 FY2013'!$B:$B,'2.1 Database'!B41,'1.3 FY2013'!$F:$F) -> -106525.708 | J41: Other operating expenses | K41: =+COUNTIF('2.2 P&L statement'!$B$4:$B$24,'2.1 Database'!J41) -> 1
B42: 2071980000111101 | C42: =+VLOOKUP($B42,'1.1 FY2011'!$B$5:$E$61,2,FALSE) -> Misc costs | D42: =+VLOOKUP($B42,'1.1 FY2011'!$B$5:$E$61,3,FALSE) -> 111101 | E42: =+VLOOKUP($B42,'1.1 FY2011'!$B$5:$E$61,4,FALSE) -> Not assigned | F42: =-SUMIF('1.1 FY2011'!$B:$B,'2.1 Database'!B42,'1.1 FY2011'!$F:$F) -> -10934.672 | G42: =-SUMIF('1.2 FY2012'!$B:$B,'2.1 Database'!B42,'1.2 FY2012'!$F:$F) -> -20323.31 | H42: =-SUMIF('1.3 FY2013'!$B:$B,'2.1 Database'!B42,'1.3 FY2013'!$F:$F) -> -109811.284 | J42: Other operating expenses | K42: =+COUNTIF('2.2 P&L statement'!$B$4:$B$24,'2.1 Database'!J42) -> 1
B43: 2079022000111111 | C43: =+VLOOKUP($B43,'1.1 FY2011'!$B$5:$E$61,2,FALSE) -> Consulting fees | D43: =+VLOOKUP($B43,'1.1 FY2011'!$B$5:$E$61,3,FALSE) -> 111111 | E43: =+VLOOKUP($B43,'1.1 FY2011'!$B$5:$E$61,4,FALSE) -> External | F43: =-SUMIF('1.1 FY2011'!$B:$B,'2.1 Database'!B43,'1.1 FY2011'!$F:$F) -> -20400 | G43: =-SUMIF('1.2 FY2012'!$B:$B,'2.1 Database'!B43,'1.2 FY2012'!$F:$F) -> -169489 | H43: =-SUMIF('1.3 FY2013'!$B:$B,'2.1 Database'!B43,'1.3 FY2013'!$F:$F) -> -61111.484 | J43: Other operating expenses | K43: =+COUNTIF('2.2 P&L statement'!$B$4:$B$24,'2.1 Database'!J43) -> 1
B44: 2079070000105 | C44: =+VLOOKUP($B44,'1.1 FY2011'!$B$5:$E$61,2,FALSE) -> Misc extraordinary expenses | D44: =+VLOOKUP($B44,'1.1 FY2011'!$B$5:$E$61,3,FALSE) -> 105 | E44: =+VLOOKUP($B44,'1.1 FY2011'!$B$5:$E$61,4,FALSE) -> Generco Healthcare Ltd | F44: =-SUMIF('1.1 FY2011'!$B:$B,'2.1 Database'!B44,'1.1 FY2011'!$F:$F) -> 0 | G44: =-SUMIF('1.2 FY2012'!$B:$B,'2.1 Database'!B44,'1.2 FY2012'!$F:$F) -> 0 | H44: =-SUMIF('1.3 FY2013'!$B:$B,'2.1 Database'!B44,'1.3 FY2013'!$F:$F) -> -1684415.3 | J44: Other operating expenses | K44: =+COUNTIF('2.2 P&L statement'!$B$4:$B$24,'2.1 Database'!J44) -> 1
B45: 2079070000111111 | C45: =+VLOOKUP($B45,'1.1 FY2011'!$B$5:$E$61,2,FALSE) -> Misc extraordinary expenses | D45: =+VLOOKUP($B45,'1.1 FY2011'!$B$5:$E$61,3,FALSE) -> 111111 | E45: =+VLOOKUP($B45,'1.1 FY2011'!$B$5:$E$61,4,FALSE) -> External | F45: =-SUMIF('1.1 FY2011'!$B:$B,'2.1 Database'!B45,'1.1 FY2011'!$F:$F) -> -563918.152 | G45: =-SUMIF('1.2 FY2012'!$B:$B,'2.1 Database'!B45,'1.2 FY2012'!$F:$F) -> -638869.13 | H45: =-SUMIF('1.3 FY2013'!$B:$B,'2.1 Database'!B45,'1.3 FY2013'!$F:$F) -> -575626.265 | J45: Other operating expenses | K45: =+COUNTIF('2.2 P&L statement'!$B$4:$B$24,'2.1 Database'!J45) -> 1
B46: 20790800001009 | C46: =+VLOOKUP($B46,'1.1 FY2011'!$B$5:$E$61,2,FALSE) -> Difference from eliminations | D46: =+VLOOKUP($B46,'1.1 FY2011'!$B$5:$E$61,3,FALSE) -> 1009 | E46: =+VLOOKUP($B46,'1.1 FY2011'!$B$5:$E$61,4,FALSE) -> Green Ventures Ltd | F46: =-SUMIF('1.1 FY2011'!$B:$B,'2.1 Database'!B46,'1.1 FY2011'!$F:$F) -> 0 | G46: =-SUMIF('1.2 FY2012'!$B:$B,'2.1 Database'!B46,'1.2 FY2012'!$F:$F) -> 0 | H46: =-SUMIF('1.3 FY2013'!$B:$B,'2.1 Database'!B46,'1.3 FY2013'!$F:$F) -> 0 | J46: 0 | K46: =+COUNTIF('2.2 P&L statement'!$B$4:$B$24,'2.1 Database'!J46) -> 0
B47: 20790800001007 | C47: =+VLOOKUP($B47,'1.1 FY2011'!$B$5:$E$61,2,FALSE) -> Difference from eliminations | D47: =+VLOOKUP($B47,'1.1 FY2011'!$B$5:$E$61,3,FALSE) -> 1007 | E47: =+VLOOKUP($B47,'1.1 FY2011'!$B$5:$E$61,4,FALSE) -> Generco Sunshine JSC | F47: =-SUMIF('1.1 FY2011'!$B:$B,'2.1 Database'!B47,'1.1 FY2011'!$F:$F) -> 0 | G47: =-SUMIF('1.2 FY2012'!$B:$B,'2.1 Database'!B47,'1.2 FY2012'!$F:$F) -> 0 | H47: =-SUMIF('1.3 FY2013'!$B:$B,'2.1 Database'!B47,'1.3 FY2013'!$F:$F) -> 0 | J47: 0 | K47: =+COUNTIF('2.2 P&L statement'!$B$4:$B$24,'2.1 Database'!J47) -> 0
B48: 20790800001008 | C48: =+VLOOKUP($B48,'1.1 FY2011'!$B$5:$E$61,2,FALSE) -> Difference from eliminations | D48: =+VLOOKUP($B48,'1.1 FY2011'!$B$5:$E$61,3,FALSE) -> 1008 | E48: =+VLOOKUP($B48,'1.1 FY2011'!$B$5:$E$61,4,FALSE) -> Greenco Ltd | F48: =-SUMIF('1.1 FY2011'!$B:$B,'2.1 Database'!B48,'1.1 FY2011'!$F:$F) -> 0 | G48: =-SUMIF('1.2 FY2012'!$B:$B,'2.1 Database'!B48,'1.2 FY2012'!$F:$F) -> 0 | H48: =-SUMIF('1.3 FY2013'!$B:$B,'2.1 Database'!B48,'1.3 FY2013'!$F:$F) -> 0 | J48: 0 | K48: =+COUNTIF('2.2 P&L statement'!$B$4:$B$24,'2.1 Database'!J48) -> 0
B49: 20822800001009 | C49: =+VLOOKUP($B49,'1.1 FY2011'!$B$5:$E$61,2,FALSE) -> Interest income | D49: =+VLOOKUP($B49,'1.1 FY2011'!$B$5:$E$61,3,FALSE) -> 1009 | E49: =+VLOOKUP($B49,'1.1 FY2011'!$B$5:$E$61,4,FALSE) -> Green Ventures Ltd | F49: =-SUMIF('1.1 FY2011'!$B:$B,'2.1 Database'!B49,'1.1 FY2011'!$F:$F) -> 0 | G49: =-SUMIF('1.2 FY2012'!$B:$B,'2.1 Database'!B49,'1.2 FY2012'!$F:$F) -> 0 | H49: =-SUMIF('1.3 FY2013'!$B:$B,'2.1 Database'!B49,'1.3 FY2013'!$F:$F) -> 0 | J49: Financial items | K49: =+COUNTIF('2.2 P&L statement'!$B$4:$B$24,'2.1 Database'!J49) -> 1
B50: 20822800001007 | C50: =+VLOOKUP($B50,'1.1 FY2011'!$B$5:$E$61,2,FALSE) -> Interest income | D50: =+VLOOKUP($B50,'1.1 FY2011'!$B$5:$E$61,3,FALSE) -> 1007 | E50: =+VLOOKUP($B50,'1.1 FY2011'!$B$5:$E$61,4,FALSE) -> Generco Sunshine JSC | F50: =-SUMIF('1.1 FY2011'!$B:$B,'2.1 Database'!B50,'1.1 FY2011'!$F:$F) -> 0 | G50: =-SUMIF('1.2 FY2012'!$B:$B,'2.1 Database'!B50,'1.2 FY2012'!$F:$F) -> 0 | H50: =-SUMIF('1.3 FY2013'!$B:$B,'2.1 Database'!B50,'1.3 FY2013'!$F:$F) -> 0 | J50: Financial items | K50: =+COUNTIF('2.2 P&L statement'!$B$4:$B$24,'2.1 Database'!J50) -> 1
B51: 20822800001008 | C51: =+VLOOKUP($B51,'1.1 FY2011'!$B$5:$E$61,2,FALSE) -> Interest income | D51: =+VLOOKUP($B51,'1.1 FY2011'!$B$5:$E$61,3,FALSE) -> 1008 | E51: =+VLOOKUP($B51,'1.1 FY2011'!$B$5:$E$61,4,FALSE) -> Greenco Ltd | F51: =-SUMIF('1.1 FY2011'!$B:$B,'2.1 Database'!B51,'1.1 FY2011'!$F:$F) -> 0 | G51: =-SUMIF('1.2 FY2012'!$B:$B,'2.1 Database'!B51,'1.2 FY2012'!$F:$F) -> 0 | H51: =-SUMIF('1.3 FY2013'!$B:$B,'2.1 Database'!B51,'1.3 FY2013'!$F:$F) -> 0 | J51: Financial items | K51: =+COUNTIF('2.2 P&L statement'!$B$4:$B$24,'2.1 Database'!J51) -> 1
B52: 20822800001240 | C52: =+VLOOKUP($B52,'1.1 FY2011'!$B$5:$E$61,2,FALSE) -> Interest income | D52: =+VLOOKUP($B52,'1.1 FY2011'!$B$5:$E$61,3,FALSE) -> 1240 | E52: =+VLOOKUP($B52,'1.1 FY2011'!$B$5:$E$61,4,FALSE) -> Generco UK | F52: =-SUMIF('1.1 FY2011'!$B:$B,'2.1 Database'!B52,'1.1 FY2011'!$F:$F) -> 35810.228 | G52: =-SUMIF('1.2 FY2012'!$B:$B,'2.1 Database'!B52,'1.2 FY2012'!$F:$F) -> 34224.96 | H52: =-SUMIF('1.3 FY2013'!$B:$B,'2.1 Database'!B52,'1.3 FY2013'!$F:$F) -> 0 | J52: Financial items | K52: =+COUNTIF('2.2 P&L statement'!$B$4:$B$24,'2.1 Database'!J52) -> 1
B53: 2082280000111111 | C53: =+VLOOKUP($B53,'1.1 FY2011'!$B$5:$E$61,2,FALSE) -> Interest income | D53: =+VLOOKUP($B53,'1.1 FY2011'!$B$5:$E$61,3,FALSE) -> 111111 | E53: =+VLOOKUP($B53,'1.1 FY2011'!$B$5:$E$61,4,FALSE) -> External | F53: =-SUMIF('1.1 FY2011'!$B:$B,'2.1 Database'!B53,'1.1 FY2011'!$F:$F) -> 51927.418 | G53: =-SUMIF('1.2 FY2012'!$B:$B,'2.1 Database'!B53,'1.2 FY2012'!$F:$F) -> 2204.72 | H53: =-SUMIF('1.3 FY2013'!$B:$B,'2.1 Database'!B53,'1.3 FY2013'!$F:$F) -> 73809.512 | J53: Financial items | K53: =+COUNTIF('2.2 P&L statement'!$B$4:$B$24,'2.1 Database'!J53) -> 1
B54: 2082202000111101 | C54: =+VLOOKUP($B54,'1.1 FY2011'!$B$5:$E$61,2,FALSE) -> Capitalized interest | D54: =+VLOOKUP($B54,'1.1 FY2011'!$B$5:$E$61,3,FALSE) -> 111101 | E54: =+VLOOKUP($B54,'1.1 FY2011'!$B$5:$E$61,4,FALSE) -> Not assigned | F54: =-SUMIF('1.1 FY2011'!$B:$B,'2.1 Database'!B54,'1.1 FY2011'!$F:$F) -> 862270.634 | G54: =-SUMIF('1.2 FY2012'!$B:$B,'2.1 Database'!B54,'1.2 FY2012'!$F:$F) -> 0 | H54: =-SUMIF('1.3 FY2013'!$B:$B,'2.1 Database'!B54,'1.3 FY2013'!$F:$F) -> 0 | J54: Capitalized costs | K54: =+COUNTIF('2.2 P&L statement'!$B$4:$B$24,'2.1 Database'!J54) -> 1
B55: 2082208200111101 | C55: =+VLOOKUP($B55,'1.1 FY2011'!$B$5:$E$61,2,FALSE) -> Non-recurring costs | D55: =+VLOOKUP($B55,'1.1 FY2011'!$B$5:$E$61,3,FALSE) -> 111101 | E55: =+VLOOKUP($B55,'1.1 FY2011'!$B$5:$E$61,4,FALSE) -> Not assigned | F55: =-SUMIF('1.1 FY2011'!$B:$B,'2.1 Database'!B55,'1.1 FY2011'!$F:$F) -> -22763 | G55: =-SUMIF('1.2 FY2012'!$B:$B,'2.1 Database'!B55,'1.2 FY2012'!$F:$F) -> -80617.18 | H55: =-SUMIF('1.3 FY2013'!$B:$B,'2.1 Database'!B55,'1.3 FY2013'!$F:$F) -> -7173.196 | J55: Extraordinary items | K55: =+COUNTIF('2.2 P&L statement'!$B$4:$B$24,'2.1 Database'!J55) -> 1
B56: 208221400088 | C56: =+VLOOKUP($B56,'1.1 FY2011'!$B$5:$E$61,2,FALSE) -> Interest expenses | D56: =+VLOOKUP($B56,'1.1 FY2011'!$B$5:$E$61,3,FALSE) -> 88 | E56: =+VLOOKUP($B56,'1.1 FY2011'!$B$5:$E$61,4,FALSE) -> Generco Ltd | F56: =-SUMIF('1.1 FY2011'!$B:$B,'2.1 Database'!B56,'1.1 FY2011'!$F:$F) -> -2930430.012 | G56: =-SUMIF('1.2 FY2012'!$B:$B,'2.1 Database'!B56,'1.2 FY2012'!$F:$F) -> -2752704.22 | H56: =-SUMIF('1.3 FY2013'!$B:$B,'2.1 Database'!B56,'1.3 FY2013'!$F:$F) -> -2324465.886 | J56: Financial items | K56: =+COUNTIF('2.2 P&L statement'!$B$4:$B$24,'2.1 Database'!J56) -> 1
B57: 2091200000111101 | C57: =+VLOOKUP($B57,'1.1 FY2011'!$B$5:$E$61,2,FALSE) -> Current taxes | D57: =+VLOOKUP($B57,'1.1 FY2011'!$B$5:$E$61,3,FALSE) -> 111101 | E57: =+VLOOKUP($B57,'1.1 FY2011'!$B$5:$E$61,4,FALSE) -> Not assigned | F57: =-SUMIF('1.1 FY2011'!$B:$B,'2.1 Database'!B57,'1.1 FY2011'!$F:$F) -> 49378.642 | G57: =-SUMIF('1.2 FY2012'!$B:$B,'2.1 Database'!B57,'1.2 FY2012'!$F:$F) -> -496748.7 | H57: =-SUMIF('1.3 FY2013'!$B:$B,'2.1 Database'!B57,'1.3 FY2013'!$F:$F) -> -2558.195 | J57: Taxes | K57: =+COUNTIF('2.2 P&L statement'!$B$4:$B$24,'2.1 Database'!J57) -> 1
B58: 2091200001111101 | C58: =+VLOOKUP($B58,'1.1 FY2011'!$B$5:$E$61,2,FALSE) -> Regional taxes | D58: =+VLOOKUP($B58,'1.1 FY2011'!$B$5:$E$61,3,FALSE) -> 111101 | E58: =+VLOOKUP($B58,'1.1 FY2011'!$B$5:$E$61,4,FALSE) -> Not assigned | F58: =-SUMIF('1.1 FY2011'!$B:$B,'2.1 Database'!B58,'1.1 FY2011'!$F:$F) -> -516250.67 | G58: =-SUMIF('1.2 FY2012'!$B:$B,'2.1 Database'!B58,'1.2 FY2012'!$F:$F) -> -480872.96 | H58: =-SUMIF('1.3 FY2013'!$B:$B,'2.1 Database'!B58,'1.3 FY2013'!$F:$F) -> -522710.353 | J58: Taxes | K58: =+COUNTIF('2.2 P&L statement'!$B$4:$B$24,'2.1 Database'!J58) -> 1
B59: 2092200000111101 | C59: =+VLOOKUP($B59,'1.1 FY2011'!$B$5:$E$61,2,FALSE) -> Deferred taxes | D59: =+VLOOKUP($B59,'1.1 FY2011'!$B$5:$E$61,3,FALSE) -> 111101 | E59: =+VLOOKUP($B59,'1.1 FY2011'!$B$5:$E$61,4,FALSE) -> Not assigned | F59: =-SUMIF('1.1 FY2011'!$B:$B,'2.1 Database'!B59,'1.1 FY2011'!$F:$F) -> -21593.094 | G59: =-SUMIF('1.2 FY2012'!$B:$B,'2.1 Database'!B59,'1.2 FY2012'!$F:$F) -> -6570.305 | H59: =-SUMIF('1.3 FY2013'!$B:$B,'2.1 Database'!B59,'1.3 FY2013'!$F:$F) -> 160303.522 | J59: Taxes | K59: =+COUNTIF('2.2 P&L statement'!$B$4:$B$24,'2.1 Database'!J59) -> 1
B60: 2999999999111101 | C60: =+VLOOKUP($B60,'1.1 FY2011'!$B$5:$E$61,2,FALSE) -> Net income/(loss) | D60: =+VLOOKUP($B60,'1.1 FY2011'!$B$5:$E$61,3,FALSE) -> 111101 | E60: =+VLOOKUP($B60,'1.1 FY2011'!$B$5:$E$61,4,FALSE) -> Not assigned | F60: =SUMIF('1.1 FY2011'!$B:$B,'2.1 Database'!B60,'1.1 FY2011'!$F:$F) -> -2904117.994 | G60: =SUMIF('1.2 FY2012'!$B:$B,'2.1 Database'!B60,'1.2 FY2012'!$F:$F) -> 0 | H60: =SUMIF('1.3 FY2013'!$B:$B,'2.1 Database'!B60,'1.3 FY2013'!$F:$F) -> 0 | J60: Net Income | K60: =+COUNTIF('2.2 P&L statement'!$B$4:$B$24,'2.1 Database'!J60) -> 1
B61: 2001110000105 | C61: =VLOOKUP($B61,'1.2 FY2012'!$B$5:$E$86,2,FALSE) -> Core business revenues | D61: =VLOOKUP($B61,'1.2 FY2012'!$B$5:$E$86,3,FALSE) -> 105 | E61: =VLOOKUP($B61,'1.2 FY2012'!$B$5:$E$86,4,FALSE) -> Generco Healthcare Ltd | F61: =-SUMIF('1.1 FY2011'!$B:$B,'2.1 Database'!B61,'1.1 FY2011'!$F:$F) -> 0 | G61: =-SUMIF('1.2 FY2012'!$B:$B,'2.1 Database'!B61,'1.2 FY2012'!$F:$F) -> 355396.615 | H61: =-SUMIF('1.3 FY2013'!$B:$B,'2.1 Database'!B61,'1.3 FY2013'!$F:$F) -> 616462.019 | J61: Net sales | K61: =+COUNTIF('2.2 P&L statement'!$B$4:$B$24,'2.1 Database'!J61) -> 1
B62: 20200000001086 | C62: =VLOOKUP($B62,'1.2 FY2012'!$B$5:$E$86,2,FALSE) -> Capitalized costs | D62: =VLOOKUP($B62,'1.2 FY2012'!$B$5:$E$86,3,FALSE) -> 1086 | E62: =VLOOKUP($B62,'1.2 FY2012'!$B$5:$E$86,4,FALSE) -> G&Resources Ltd | F62: =-SUMIF('1.1 FY2011'!$B:$B,'2.1 Database'!B62,'1.1 FY2011'!$F:$F) -> 0 | G62: =-SUMIF('1.2 FY2012'!$B:$B,'2.1 Database'!B62,'1.2 FY2012'!$F:$F) -> 420017.15 | H62: =-SUMIF('1.3 FY2013'!$B:$B,'2.1 Database'!B62,'1.3 FY2013'!$F:$F) -> 0 | J62: Capitalized costs | K62: =+COUNTIF('2.2 P&L statement'!$B$4:$B$24,'2.1 Database'!J62) -> 1
B63: 2021210000111111 | C63: =VLOOKUP($B63,'1.2 FY2012'!$B$5:$E$86,2,FALSE) -> Utility charges | D63: =VLOOKUP($B63,'1.2 FY2012'!$B$5:$E$86,3,FALSE) -> 111111 | E63: =VLOOKUP($B63,'1.2 FY2012'!$B$5:$E$86,4,FALSE) -> External | F63: =-SUMIF('1.1 FY2011'!$B:$B,'2.1 Database'!B63,'1.1 FY2011'!$F:$F) -> 0 | G63: =-SUMIF('1.2 FY2012'!$B:$B,'2.1 Database'!B63,'1.2 FY2012'!$F:$F) -> -14589.33 | H63: =-SUMIF('1.3 FY2013'!$B:$B,'2.1 Database'!B63,'1.3 FY2013'!$F:$F) -> -20504.51 | J63: Other operating expenses | K63: =+COUNTIF('2.2 P&L statement'!$B$4:$B$24,'2.1 Database'!J63) -> 1
B64: 202409000019 | C64: =VLOOKUP($B64,'1.2 FY2012'!$B$5:$E$86,2,FALSE) -> R&D expenses | D64: =VLOOKUP($B64,'1.2 FY2012'!$B$5:$E$86,3,FALSE) -> 19 | E64: =VLOOKUP($B64,'1.2 FY2012'!$B$5:$E$86,4,FALSE) -> Generco Cosmetics Ltd | F64: =-SUMIF('1.1 FY2011'!$B:$B,'2.1 Database'!B64,'1.1 FY2011'!$F:$F) -> 0 | G64: =-SUMIF('1.2 FY2012'!$B:$B,'2.1 Database'!B64,'1.2 FY2012'!$F:$F) -> -38521 | H64: =-SUMIF('1.3 FY2013'!$B:$B,'2.1 Database'!B64,'1.3 FY2013'!$F:$F) -> 0 | J64: Other operating expenses | K64: =+COUNTIF('2.2 P&L statement'!$B$4:$B$24,'2.1 Database'!J64) -> 1
B65: 20240900001283 | C65: =VLOOKUP($B65,'1.2 FY2012'!$B$5:$E$86,2,FALSE) -> R&D expenses | D65: =VLOOKUP($B65,'1.2 FY2012'!$B$5:$E$86,3,FALSE) -> 1283 | E65: =VLOOKUP($B65,'1.2 FY2012'!$B$5:$E$86,4,FALSE) -> Generco Ventures Ltd | F65: =-SUMIF('1.1 FY2011'!$B:$B,'2.1 Database'!B65,'1.1 FY2011'!$F:$F) -> 0 | G65: =-SUMIF('1.2 FY2012'!$B:$B,'2.1 Database'!B65,'1.2 FY2012'!$F:$F) -> -1820 | H65: =-SUMIF('1.3 FY2013'!$B:$B,'2.1 Database'!B65,'1.3 FY2013'!$F:$F) -> 0 | J65: Other operating expenses | K65: =+COUNTIF('2.2 P&L statement'!$B$4:$B$24,'2.1 Database'!J65) -> 1
B66: 20240900001924 | C66: =VLOOKUP($B66,'1.2 FY2012'!$B$5:$E$86,2,FALSE) -> R&D expenses | D66: =VLOOKUP($B66,'1.2 FY2012'!$B$5:$E$86,3,FALSE) -> 1924 | E66: =VLOOKUP($B66,'1.2 FY2012'!$B$5:$E$86,4,FALSE) -> Generco Infrastructure Ltd | F66: =-SUMIF('1.1 FY2011'!$B:$B,'2.1 Database'!B66,'1.1 FY2011'!$F:$F) -> 0 | G66: =-SUMIF('1.2 FY2012'!$B:$B,'2.1 Database'!B66,'1.2 FY2012'!$F:$F) -> -10448.13 | H66: =-SUMIF('1.3 FY2013'!$B:$B,'2.1 Database'!B66,'1.3 FY2013'!$F:$F) -> -673.343 | J66: Other operating expenses | K66: =+COUNTIF('2.2 P&L statement'!$B$4:$B$24,'2.1 Database'!J66) -> 1
B67: 20240900002486 | C67: =VLOOKUP($B67,'1.2 FY2012'!$B$5:$E$86,2,FALSE) -> R&D expenses | D67: =VLOOKUP($B67,'1.2 FY2012'!$B$5:$E$86,3,FALSE) -> 2486 | E67: =VLOOKUP($B67,'1.2 FY2012'!$B$5:$E$86,4,FALSE) -> Generco Exloration Ltd | F67: =-SUMIF('1.1 FY2011'!$B:$B,'2.1 Database'!B67,'1.1 FY2011'!$F:$F) -> 0 | G67: =-SUMIF('1.2 FY2012'!$B:$B,'2.1 Database'!B67,'1.2 FY2012'!$F:$F) -> -10412.5 | H67: =-SUMIF('1.3 FY2013'!$B:$B,'2.1 Database'!B67,'1.3 FY2013'!$F:$F) -> 0 | J67: Other operating expenses | K67: =+COUNTIF('2.2 P&L statement'!$B$4:$B$24,'2.1 Database'!J67) -> 1
B68: 2049000000111101 | C68: =VLOOKUP($B68,'1.2 FY2012'!$B$5:$E$86,2,FALSE) -> Other personnel expenses | D68: =VLOOKUP($B68,'1.2 FY2012'!$B$5:$E$86,3,FALSE) -> 111101 | E68: =VLOOKUP($B68,'1.2 FY2012'!$B$5:$E$86,4,FALSE) -> Not assigned | F68: =-SUMIF('1.1 FY2011'!$B:$B,'2.1 Database'!B68,'1.1 FY2011'!$F:$F) -> 0 | G68: =-SUMIF('1.2 FY2012'!$B:$B,'2.1 Database'!B68,'1.2 FY2012'!$F:$F) -> -6919.85 | H68: =-SUMIF('1.3 FY2013'!$B:$B,'2.1 Database'!B68,'1.3 FY2013'!$F:$F) -> 0 | J68: Personnel expenses | K68: =+COUNTIF('2.2 P&L statement'!$B$4:$B$24,'2.1 Database'!J68) -> 1
B69: 2060220000111111 | C69: =VLOOKUP($B69,'1.2 FY2012'!$B$5:$E$86,2,FALSE) -> Gains from disposal of PP&E | D69: =VLOOKUP($B69,'1.2 FY2012'!$B$5:$E$86,3,FALSE) -> 111111 | E69: =VLOOKUP($B69,'1.2 FY2012'!$B$5:$E$86,4,FALSE) -> External | F69: =-SUMIF('1.1 FY2011'!$B:$B,'2.1 Database'!B69,'1.1 FY2011'!$F:$F) -> 0 | G69: =-SUMIF('1.2 FY2012'!$B:$B,'2.1 Database'!B69,'1.2 FY2012'!$F:$F) -> 121553.075 | H69: =-SUMIF('1.3 FY2013'!$B:$B,'2.1 Database'!B69,'1.3 FY2013'!$F:$F) -> 0 | J69: Extraordinary items | K69: =+COUNTIF('2.2 P&L statement'!$B$4:$B$24,'2.1 Database'!J69) -> 1
B70: 206901000019 | C70: =VLOOKUP($B70,'1.2 FY2012'!$B$5:$E$86,2,FALSE) -> Corporate recharges | D70: =VLOOKUP($B70,'1.2 FY2012'!$B$5:$E$86,3,FALSE) -> 19 | E70: =VLOOKUP($B70,'1.2 FY2012'!$B$5:$E$86,4,FALSE) -> Generco Cosmetics Ltd | F70: =-SUMIF('1.1 FY2011'!$B:$B,'2.1 Database'!B70,'1.1 FY2011'!$F:$F) -> 0 | G70: =-SUMIF('1.2 FY2012'!$B:$B,'2.1 Database'!B70,'1.2 FY2012'!$F:$F) -> 416278.66 | H70: =-SUMIF('1.3 FY2013'!$B:$B,'2.1 Database'!B70,'1.3 FY2013'!$F:$F) -> 622966.386 | J70: Recharges | K70: =+COUNTIF('2.2 P&L statement'!$B$4:$B$24,'2.1 Database'!J70) -> 1
B71: 20690100001076 | C71: =VLOOKUP($B71,'1.2 FY2012'!$B$5:$E$86,2,FALSE) -> Corporate recharges | D71: =VLOOKUP($B71,'1.2 FY2012'!$B$5:$E$86,3,FALSE) -> 1076 | E71: =VLOOKUP($B71,'1.2 FY2012'!$B$5:$E$86,4,FALSE) -> Generco Trading Ltd | F71: =-SUMIF('1.1 FY2011'!$B:$B,'2.1 Database'!B71,'1.1 FY2011'!$F:$F) -> 0 | G71: =-SUMIF('1.2 FY2012'!$B:$B,'2.1 Database'!B71,'1.2 FY2012'!$F:$F) -> 364243.845 | H71: =-SUMIF('1.3 FY2013'!$B:$B,'2.1 Database'!B71,'1.3 FY2013'!$F:$F) -> 0 | J71: Recharges | K71: =+COUNTIF('2.2 P&L statement'!$B$4:$B$24,'2.1 Database'!J71) -> 1
B72: 20690100001086 | C72: =VLOOKUP($B72,'1.2 FY2012'!$B$5:$E$86,2,FALSE) -> Corporate recharges | D72: =VLOOKUP($B72,'1.2 FY2012'!$B$5:$E$86,3,FALSE) -> 1086 | E72: =VLOOKUP($B72,'1.2 FY2012'!$B$5:$E$86,4,FALSE) -> G&Resources Ltd | F72: =-SUMIF('1.1 FY2011'!$B:$B,'2.1 Database'!B72,'1.1 FY2011'!$F:$F) -> 0 | G72: =-SUMIF('1.2 FY2012'!$B:$B,'2.1 Database'!B72,'1.2 FY2012'!$F:$F) -> 0 | H72: =-SUMIF('1.3 FY2013'!$B:$B,'2.1 Database'!B72,'1.3 FY2013'!$F:$F) -> 0 | J72: Recharges | K72: =+COUNTIF('2.2 P&L statement'!$B$4:$B$24,'2.1 Database'!J72) -> 1
B73: 206901000047037 | C73: =VLOOKUP($B73,'1.2 FY2012'!$B$5:$E$86,2,FALSE) -> Corporate recharges | D73: =VLOOKUP($B73,'1.2 FY2012'!$B$5:$E$86,3,FALSE) -> 47037 | E73: =VLOOKUP($B73,'1.2 FY2012'!$B$5:$E$86,4,FALSE) -> G&CR Global Ltd | F73: =-SUMIF('1.1 FY2011'!$B:$B,'2.1 Database'!B73,'1.1 FY2011'!$F:$F) -> 0 | G73: =-SUMIF('1.2 FY2012'!$B:$B,'2.1 Database'!B73,'1.2 FY2012'!$F:$F) -> 482611.045 | H73: =-SUMIF('1.3 FY2013'!$B:$B,'2.1 Database'!B73,'1.3 FY2013'!$F:$F) -> 1948832.143 | J73: Recharges | K73: =+COUNTIF('2.2 P&L statement'!$B$4:$B$24,'2.1 Database'!J73) -> 1
B74: 206998000088 | C74: =VLOOKUP($B74,'1.2 FY2012'!$B$5:$E$86,2,FALSE) -> Other income | D74: =VLOOKUP($B74,'1.2 FY2012'!$B$5:$E$86,3,FALSE) -> 88 | E74: =VLOOKUP($B74,'1.2 FY2012'!$B$5:$E$86,4,FALSE) -> Generco Ltd | F74: =-SUMIF('1.1 FY2011'!$B:$B,'2.1 Database'!B74,'1.1 FY2011'!$F:$F) -> 0 | G74: =-SUMIF('1.2 FY2012'!$B:$B,'2.1 Database'!B74,'1.2 FY2012'!$F:$F) -> 2436.35 | H74: =-SUMIF('1.3 FY2013'!$B:$B,'2.1 Database'!B74,'1.3 FY2013'!$F:$F) -> 0 | J74: Other income | K74: =+COUNTIF('2.2 P&L statement'!$B$4:$B$24,'2.1 Database'!J74) -> 1
B75: 2070290000111101 | C75: =VLOOKUP($B75,'1.2 FY2012'!$B$5:$E$86,2,FALSE) -> Concession fees other | D75: =VLOOKUP($B75,'1.2 FY2012'!$B$5:$E$86,3,FALSE) -> 111101 | E75: =VLOOKUP($B75,'1.2 FY2012'!$B$5:$E$86,4,FALSE) -> Not assigned | F75: =-SUMIF('1.1 FY2011'!$B:$B,'2.1 Database'!B75,'1.1 FY2011'!$F:$F) -> 0 | G75: =-SUMIF('1.2 FY2012'!$B:$B,'2.1 Database'!B75,'1.2 FY2012'!$F:$F) -> -81.34 | H75: =-SUMIF('1.3 FY2013'!$B:$B,'2.1 Database'!B75,'1.3 FY2013'!$F:$F) -> 0 | J75: Other operating expenses | K75: =+COUNTIF('2.2 P&L statement'!$B$4:$B$24,'2.1 Database'!J75) -> 1
B76: 2070900000105 | C76: =VLOOKUP($B76,'1.2 FY2012'!$B$5:$E$86,2,FALSE) -> Service expenses | D76: =VLOOKUP($B76,'1.2 FY2012'!$B$5:$E$86,3,FALSE) -> 105 | E76: =VLOOKUP($B76,'1.2 FY2012'!$B$5:$E$86,4,FALSE) -> Generco Healthcare Ltd | F76: =-SUMIF('1.1 FY2011'!$B:$B,'2.1 Database'!B76,'1.1 FY2011'!$F:$F) -> 0 | G76: =-SUMIF('1.2 FY2012'!$B:$B,'2.1 Database'!B76,'1.2 FY2012'!$F:$F) -> -276920 | H76: =-SUMIF('1.3 FY2013'!$B:$B,'2.1 Database'!B76,'1.3 FY2013'!$F:$F) -> -473575.461 | J76: Services | K76: =+COUNTIF('2.2 P&L statement'!$B$4:$B$24,'2.1 Database'!J76) -> 1
B77: 20711000001900 | C77: =VLOOKUP($B77,'1.2 FY2012'!$B$5:$E$86,2,FALSE) -> Insurance expenses | D77: =VLOOKUP($B77,'1.2 FY2012'!$B$5:$E$86,3,FALSE) -> 1900 | E77: =VLOOKUP($B77,'1.2 FY2012'!$B$5:$E$86,4,FALSE) -> Generco Metals Gm | F77: =-SUMIF('1.1 FY2011'!$B:$B,'2.1 Database'!B77,'1.1 FY2011'!$F:$F) -> 0 | G77: =-SUMIF('1.2 FY2012'!$B:$B,'2.1 Database'!B77,'1.2 FY2012'!$F:$F) -> 0 | H77: =-SUMIF('1.3 FY2013'!$B:$B,'2.1 Database'!B77,'1.3 FY2013'!$F:$F) -> 0 | J77: 0 | K77: =+COUNTIF('2.2 P&L statement'!$B$4:$B$24,'2.1 Database'!J77) -> 0
B78: 20712092001118 | C78: =VLOOKUP($B78,'1.2 FY2012'!$B$5:$E$86,2,FALSE) -> Travel expenses | D78: =VLOOKUP($B78,'1.2 FY2012'!$B$5:$E$86,3,FALSE) -> 1118 | E78: =VLOOKUP($B78,'1.2 FY2012'!$B$5:$E$86,4,FALSE) -> Gener Green LLC | F78: =-SUMIF('1.1 FY2011'!$B:$B,'2.1 Database'!B78,'1.1 FY2011'!$F:$F) -> 0 | G78: =-SUMIF('1.2 FY2012'!$B:$B,'2.1 Database'!B78,'1.2 FY2012'!$F:$F) -> -23928.8 | H78: =-SUMIF('1.3 FY2013'!$B:$B,'2.1 Database'!B78,'1.3 FY2013'!$F:$F) -> 0 | J78: Other operating expenses | K78: =+COUNTIF('2.2 P&L statement'!$B$4:$B$24,'2.1 Database'!J78) -> 1
B79: 2071220000111111 | C79: =VLOOKUP($B79,'1.2 FY2012'!$B$5:$E$86,2,FALSE) -> Losses fr disposal of PPE | D79: =VLOOKUP($B79,'1.2 FY2012'!$B$5:$E$86,3,FALSE) -> 111111 | E79: =VLOOKUP($B79,'1.2 FY2012'!$B$5:$E$86,4,FALSE) -> External | F79: =-SUMIF('1.1 FY2011'!$B:$B,'2.1 Database'!B79,'1.1 FY2011'!$F:$F) -> 0 | G79: =-SUMIF('1.2 FY2012'!$B:$B,'2.1 Database'!B79,'1.2 FY2012'!$F:$F) -> -308232 | H79: =-SUMIF('1.3 FY2013'!$B:$B,'2.1 Database'!B79,'1.3 FY2013'!$F:$F) -> 0 | J79: Extraordinary items | K79: =+COUNTIF('2.2 P&L statement'!$B$4:$B$24,'2.1 Database'!J79) -> 1
B80: 207151100019 | C80: =VLOOKUP($B80,'1.2 FY2012'!$B$5:$E$86,2,FALSE) -> Other operative currency differences | D80: =VLOOKUP($B80,'1.2 FY2012'!$B$5:$E$86,3,FALSE) -> 19 | E80: =VLOOKUP($B80,'1.2 FY2012'!$B$5:$E$86,4,FALSE) -> Generco Cosmetics Ltd | F80: =-SUMIF('1.1 FY2011'!$B:$B,'2.1 Database'!B80,'1.1 FY2011'!$F:$F) -> 0 | G80: =-SUMIF('1.2 FY2012'!$B:$B,'2.1 Database'!B80,'1.2 FY2012'!$F:$F) -> -13422.78 | H80: =-SUMIF('1.3 FY2013'!$B:$B,'2.1 Database'!B80,'1.3 FY2013'!$F:$F) -> 0 | J80: Other operating expenses | K80: =+COUNTIF('2.2 P&L statement'!$B$4:$B$24,'2.1 Database'!J80) -> 1
B81: 2071511000111111 | C81: =VLOOKUP($B81,'1.2 FY2012'!$B$5:$E$86,2,FALSE) -> Other operative currency differences | D81: =VLOOKUP($B81,'1.2 FY2012'!$B$5:$E$86,3,FALSE) -> 111111 | E81: =VLOOKUP($B81,'1.2 FY2012'!$B$5:$E$86,4,FALSE) -> External | F81: =-SUMIF('1.1 FY2011'!$B:$B,'2.1 Database'!B81,'1.1 FY2011'!$F:$F) -> 0 | G81: =-SUMIF('1.2 FY2012'!$B:$B,'2.1 Database'!B81,'1.2 FY2012'!$F:$F) -> -4045.615 | H81: =-SUMIF('1.3 FY2013'!$B:$B,'2.1 Database'!B81,'1.3 FY2013'!$F:$F) -> 0 | J81: Other operating expenses | K81: =+COUNTIF('2.2 P&L statement'!$B$4:$B$24,'2.1 Database'!J81) -> 1
B82: 2071910000111111 | C82: =VLOOKUP($B82,'1.2 FY2012'!$B$5:$E$86,2,FALSE) -> Property tax | D82: =VLOOKUP($B82,'1.2 FY2012'!$B$5:$E$86,3,FALSE) -> 111111 | E82: =VLOOKUP($B82,'1.2 FY2012'!$B$5:$E$86,4,FALSE) -> External | F82: =-SUMIF('1.1 FY2011'!$B:$B,'2.1 Database'!B82,'1.1 FY2011'!$F:$F) -> 0 | G82: =-SUMIF('1.2 FY2012'!$B:$B,'2.1 Database'!B82,'1.2 FY2012'!$F:$F) -> -49621.145 | H82: =-SUMIF('1.3 FY2013'!$B:$B,'2.1 Database'!B82,'1.3 FY2013'!$F:$F) -> 0 | J82: Other operating expenses | K82: =+COUNTIF('2.2 P&L statement'!$B$4:$B$24,'2.1 Database'!J82) -> 1
B83: 207907000019 | C83: =VLOOKUP($B83,'1.2 FY2012'!$B$5:$E$86,2,FALSE) -> Misc extraordinary expenses | D83: =VLOOKUP($B83,'1.2 FY2012'!$B$5:$E$86,3,FALSE) -> 19 | E83: =VLOOKUP($B83,'1.2 FY2012'!$B$5:$E$86,4,FALSE) -> Generco Cosmetics Ltd | F83: =-SUMIF('1.1 FY2011'!$B:$B,'2.1 Database'!B83,'1.1 FY2011'!$F:$F) -> 0 | G83: =-SUMIF('1.2 FY2012'!$B:$B,'2.1 Database'!B83,'1.2 FY2012'!$F:$F) -> -85462.685 | H83: =-SUMIF('1.3 FY2013'!$B:$B,'2.1 Database'!B83,'1.3 FY2013'!$F:$F) -> 0 | J83: Extraordinary items | K83: =+COUNTIF('2.2 P&L statement'!$B$4:$B$24,'2.1 Database'!J83) -> 1
B84: 207907000043 | C84: =VLOOKUP($B84,'1.2 FY2012'!$B$5:$E$86,2,FALSE) -> Misc extraordinary expenses | D84: =VLOOKUP($B84,'1.2 FY2012'!$B$5:$E$86,3,FALSE) -> 43 | E84: =VLOOKUP($B84,'1.2 FY2012'!$B$5:$E$86,4,FALSE) -> Greeny France SL | F84: =-SUMIF('1.1 FY2011'!$B:$B,'2.1 Database'!B84,'1.1 FY2011'!$F:$F) -> 0 | G84: =-SUMIF('1.2 FY2012'!$B:$B,'2.1 Database'!B84,'1.2 FY2012'!$F:$F) -> -11422.145 | H84: =-SUMIF('1.3 FY2013'!$B:$B,'2.1 Database'!B84,'1.3 FY2013'!$F:$F) -> 0 | J84: Extraordinary items | K84: =+COUNTIF('2.2 P&L statement'!$B$4:$B$24,'2.1 Database'!J84) -> 1
B85: 20790700001924 | C85: =VLOOKUP($B85,'1.2 FY2012'!$B$5:$E$86,2,FALSE) -> Misc extraordinary expenses | D85: =VLOOKUP($B85,'1.2 FY2012'!$B$5:$E$86,3,FALSE) -> 1924 | E85: =VLOOKUP($B85,'1.2 FY2012'!$B$5:$E$86,4,FALSE) -> Generco Infrastructure Ltd | F85: =-SUMIF('1.1 FY2011'!$B:$B,'2.1 Database'!B85,'1.1 FY2011'!$F:$F) -> 0 | G85: =-SUMIF('1.2 FY2012'!$B:$B,'2.1 Database'!B85,'1.2 FY2012'!$F:$F) -> -84438.865 | H85: =-SUMIF('1.3 FY2013'!$B:$B,'2.1 Database'!B85,'1.3 FY2013'!$F:$F) -> 0 | J85: Extraordinary items | K85: =+COUNTIF('2.2 P&L statement'!$B$4:$B$24,'2.1 Database'!J85) -> 1
B86: 20790800001086 | C86: =VLOOKUP($B86,'1.2 FY2012'!$B$5:$E$86,2,FALSE) -> Difference from eliminations | D86: =VLOOKUP($B86,'1.2 FY2012'!$B$5:$E$86,3,FALSE) -> 1086 | E86: =VLOOKUP($B86,'1.2 FY2012'!$B$5:$E$86,4,FALSE) -> G&Resources Ltd | F86: =-SUMIF('1.1 FY2011'!$B:$B,'2.1 Database'!B86,'1.1 FY2011'!$F:$F) -> 0 | G86: =-SUMIF('1.2 FY2012'!$B:$B,'2.1 Database'!B86,'1.2 FY2012'!$F:$F) -> 0 | H86: =-SUMIF('1.3 FY2013'!$B:$B,'2.1 Database'!B86,'1.3 FY2013'!$F:$F) -> 0 | J86: 0 | K86: =+COUNTIF('2.2 P&L statement'!$B$4:$B$24,'2.1 Database'!J86) -> 0
B87: 20822800001086 | C87: =VLOOKUP($B87,'1.2 FY2012'!$B$5:$E$86,2,FALSE) -> Interest income | D87: =VLOOKUP($B87,'1.2 FY2012'!$B$5:$E$86,3,FALSE) -> 1086 | E87: =VLOOKUP($B87,'1.2 FY2012'!$B$5:$E$86,4,FALSE) -> G&Resources Ltd | F87: =-SUMIF('1.1 FY2011'!$B:$B,'2.1 Database'!B87,'1.1 FY2011'!$F:$F) -> 0 | G87: =-SUMIF('1.2 FY2012'!$B:$B,'2.1 Database'!B87,'1.2 FY2012'!$F:$F) -> 0 | H87: =-SUMIF('1.3 FY2013'!$B:$B,'2.1 Database'!B87,'1.3 FY2013'!$F:$F) -> 0 | J87: Financial items | K87: =+COUNTIF('2.2 P&L statement'!$B$4:$B$24,'2.1 Database'!J87) -> 1
B88: 20822800001006 | C88: =VLOOKUP($B88,'1.2 FY2012'!$B$5:$E$86,2,FALSE) -> Interest income | D88: =VLOOKUP($B88,'1.2 FY2012'!$B$5:$E$86,3,FALSE) -> 1006 | E88: =VLOOKUP($B88,'1.2 FY2012'!$B$5:$E$86,4,FALSE) -> Generco Mining GmbH | F88: =-SUMIF('1.1 FY2011'!$B:$B,'2.1 Database'!B88,'1.1 FY2011'!$F:$F) -> 0 | G88: =-SUMIF('1.2 FY2012'!$B:$B,'2.1 Database'!B88,'1.2 FY2012'!$F:$F) -> 6778.415 | H88: =-SUMIF('1.3 FY2013'!$B:$B,'2.1 Database'!B88,'1.3 FY2013'!$F:$F) -> 0 | J88: Financial items | K88: =+COUNTIF('2.2 P&L statement'!$B$4:$B$24,'2.1 Database'!J88) -> 1
B89: 20822140001007 | C89: =VLOOKUP($B89,'1.2 FY2012'!$B$5:$E$86,2,FALSE) -> Interest expenses | D89: =VLOOKUP($B89,'1.2 FY2012'!$B$5:$E$86,3,FALSE) -> 1007 | E89: =VLOOKUP($B89,'1.2 FY2012'!$B$5:$E$86,4,FALSE) -> Generco Semiconductors Ltd | F89: =-SUMIF('1.1 FY2011'!$B:$B,'2.1 Database'!B89,'1.1 FY2011'!$F:$F) -> 0 | G89: =-SUMIF('1.2 FY2012'!$B:$B,'2.1 Database'!B89,'1.2 FY2012'!$F:$F) -> 0 | H89: =-SUMIF('1.3 FY2013'!$B:$B,'2.1 Database'!B89,'1.3 FY2013'!$F:$F) -> 0 | J89: Financial items | K89: =+COUNTIF('2.2 P&L statement'!$B$4:$B$24,'2.1 Database'!J89) -> 1
B90: 2082214000111111 | C90: =VLOOKUP($B90,'1.2 FY2012'!$B$5:$E$86,2,FALSE) -> Interest expenses | D90: =VLOOKUP($B90,'1.2 FY2012'!$B$5:$E$86,3,FALSE) -> 111111 | E90: =VLOOKUP($B90,'1.2 FY2012'!$B$5:$E$86,4,FALSE) -> External | F90: =-SUMIF('1.1 FY2011'!$B:$B,'2.1 Database'!B90,'1.1 FY2011'!$F:$F) -> 0 | G90: =-SUMIF('1.2 FY2012'!$B:$B,'2.1 Database'!B90,'1.2 FY2012'!$F:$F) -> -1250.795 | H90: =-SUMIF('1.3 FY2013'!$B:$B,'2.1 Database'!B90,'1.3 FY2013'!$F:$F) -> -51.455 | J90: Financial items | K90: =+COUNTIF('2.2 P&L statement'!$B$4:$B$24,'2.1 Database'!J90) -> 1
B91: 20821100001240 | C91: =VLOOKUP($B91,'1.2 FY2012'!$B$5:$E$86,2,FALSE) -> Impairment of participation | D91: =VLOOKUP($B91,'1.2 FY2012'!$B$5:$E$86,3,FALSE) -> 1240 | E91: =VLOOKUP($B91,'1.2 FY2012'!$B$5:$E$86,4,FALSE) -> Generco UK | F91: =-SUMIF('1.1 FY2011'!$B:$B,'2.1 Database'!B91,'1.1 FY2011'!$F:$F) -> 0 | G91: =-SUMIF('1.2 FY2012'!$B:$B,'2.1 Database'!B91,'1.2 FY2012'!$F:$F) -> -4130000 | H91: =-SUMIF('1.3 FY2013'!$B:$B,'2.1 Database'!B91,'1.3 FY2013'!$F:$F) -> 0 | J91: Extraordinary items | K91: =+COUNTIF('2.2 P&L statement'!$B$4:$B$24,'2.1 Database'!J91) -> 1
B92: 2091900000111101 | C92: =VLOOKUP($B92,'1.2 FY2012'!$B$5:$E$86,2,FALSE) -> Quarterly changes in current taxes | D92: =VLOOKUP($B92,'1.2 FY2012'!$B$5:$E$86,3,FALSE) -> 111101 | E92: =VLOOKUP($B92,'1.2 FY2012'!$B$5:$E$86,4,FALSE) -> Not assigned | F92: =-SUMIF('1.1 FY2011'!$B:$B,'2.1 Database'!B92,'1.1 FY2011'!$F:$F) -> 0 | G92: =-SUMIF('1.2 FY2012'!$B:$B,'2.1 Database'!B92,'1.2 FY2012'!$F:$F) -> 0 | H92: =-SUMIF('1.3 FY2013'!$B:$B,'2.1 Database'!B92,'1.3 FY2013'!$F:$F) -> 0 | J92: 0 | K92: =+COUNTIF('2.2 P&L statement'!$B$4:$B$24,'2.1 Database'!J92) -> 0
B93: 2111111999111101 | C93: =VLOOKUP($B93,'1.2 FY2012'!$B$5:$E$86,2,FALSE) -> Net income/(loss) | D93: =VLOOKUP($B93,'1.2 FY2012'!$B$5:$E$86,3,FALSE) -> 111101 | E93: =VLOOKUP($B93,'1.2 FY2012'!$B$5:$E$86,4,FALSE) -> Not assigned | F93: =SUMIF('1.1 FY2011'!$B:$B,'2.1 Database'!B93,'1.1 FY2011'!$F:$F) -> 0 | G93: =SUMIF('1.2 FY2012'!$B:$B,'2.1 Database'!B93,'1.2 FY2012'!$F:$F) -> 6073808.16 | H93: =SUMIF('1.3 FY2013'!$B:$B,'2.1 Database'!B93,'1.3 FY2013'!$F:$F) -> -779290.476 | J93: Net Income | K93: =+COUNTIF('2.2 P&L statement'!$B$4:$B$24,'2.1 Database'!J93) -> 1
B94: 2024020000111111 | C94: =+VLOOKUP($B94,'1.3 FY2013'!$B$5:$E$78,2,FALSE) -> Operating expenses for utilities | D94: =+VLOOKUP($B94,'1.3 FY2013'!$B$5:$E$78,3,FALSE) -> 111111 | E94: =+VLOOKUP($B94,'1.3 FY2013'!$B$5:$E$78,4,FALSE) -> External | F94: =-SUMIF('1.1 FY2011'!$B:$B,'2.1 Database'!B94,'1.1 FY2011'!$F:$F) -> 0 | G94: =-SUMIF('1.2 FY2012'!$B:$B,'2.1 Database'!B94,'1.2 FY2012'!$F:$F) -> 0 | H94: =-SUMIF('1.3 FY2013'!$B:$B,'2.1 Database'!B94,'1.3 FY2013'!$F:$F) -> -13691.95 | J94: Other operating expenses | K94: =+COUNTIF('2.2 P&L statement'!$B$4:$B$24,'2.1 Database'!J94) -> 1
B95: 20240900002185 | C95: =+VLOOKUP($B95,'1.3 FY2013'!$B$5:$E$78,2,FALSE) -> R&D expenses | D95: =+VLOOKUP($B95,'1.3 FY2013'!$B$5:$E$78,3,FALSE) -> 2185 | E95: =+VLOOKUP($B95,'1.3 FY2013'!$B$5:$E$78,4,FALSE) -> Generco Green Projects GmbH | F95: =-SUMIF('1.1 FY2011'!$B:$B,'2.1 Database'!B95,'1.1 FY2011'!$F:$F) -> 0 | G95: =-SUMIF('1.2 FY2012'!$B:$B,'2.1 Database'!B95,'1.2 FY2012'!$F:$F) -> 0 | H95: =-SUMIF('1.3 FY2013'!$B:$B,'2.1 Database'!B95,'1.3 FY2013'!$F:$F) -> -192017.145 | J95: Other operating expenses | K95: =+COUNTIF('2.2 P&L statement'!$B$4:$B$24,'2.1 Database'!J95) -> 1
B96: 20240900002240 | C96: =+VLOOKUP($B96,'1.3 FY2013'!$B$5:$E$78,2,FALSE) -> R&D expenses | D96: =+VLOOKUP($B96,'1.3 FY2013'!$B$5:$E$78,3,FALSE) -> 2240 | E96: =+VLOOKUP($B96,'1.3 FY2013'!$B$5:$E$78,4,FALSE) -> Greeny Germany GmbH | F96: =-SUMIF('1.1 FY2011'!$B:$B,'2.1 Database'!B96,'1.1 FY2011'!$F:$F) -> 0 | G96: =-SUMIF('1.2 FY2012'!$B:$B,'2.1 Database'!B96,'1.2 FY2012'!$F:$F) -> 0 | H96: =-SUMIF('1.3 FY2013'!$B:$B,'2.1 Database'!B96,'1.3 FY2013'!$F:$F) -> -375290.466 | J96: Other operating expenses | K96: =+COUNTIF('2.2 P&L statement'!$B$4:$B$24,'2.1 Database'!J96) -> 1
B97: 202409000017000 | C97: =+VLOOKUP($B97,'1.3 FY2013'!$B$5:$E$78,2,FALSE) -> R&D expenses | D97: =+VLOOKUP($B97,'1.3 FY2013'!$B$5:$E$78,3,FALSE) -> 17000 | E97: =+VLOOKUP($B97,'1.3 FY2013'!$B$5:$E$78,4,FALSE) -> Generco Risk Management Ltd | F97: =-SUMIF('1.1 FY2011'!$B:$B,'2.1 Database'!B97,'1.1 FY2011'!$F:$F) -> 0 | G97: =-SUMIF('1.2 FY2012'!$B:$B,'2.1 Database'!B97,'1.2 FY2012'!$F:$F) -> 0 | H97: =-SUMIF('1.3 FY2013'!$B:$B,'2.1 Database'!B97,'1.3 FY2013'!$F:$F) -> -4920 | J97: Other operating expenses | K97: =+COUNTIF('2.2 P&L statement'!$B$4:$B$24,'2.1 Database'!J97) -> 1
B98: 20604410001118 | C98: =+VLOOKUP($B98,'1.3 FY2013'!$B$5:$E$78,2,FALSE) -> Other operative currency differences | D98: =+VLOOKUP($B98,'1.3 FY2013'!$B$5:$E$78,3,FALSE) -> 1118 | E98: =+VLOOKUP($B98,'1.3 FY2013'!$B$5:$E$78,4,FALSE) -> Gener Green LLC | F98: =-SUMIF('1.1 FY2011'!$B:$B,'2.1 Database'!B98,'1.1 FY2011'!$F:$F) -> 0 | G98: =-SUMIF('1.2 FY2012'!$B:$B,'2.1 Database'!B98,'1.2 FY2012'!$F:$F) -> 0 | H98: =-SUMIF('1.3 FY2013'!$B:$B,'2.1 Database'!B98,'1.3 FY2013'!$F:$F) -> 0 | J98: Other operating expenses | K98: =+COUNTIF('2.2 P&L statement'!$B$4:$B$24,'2.1 Database'!J98) -> 1
B99: 2060441000111111 | C99: =+VLOOKUP($B99,'1.3 FY2013'!$B$5:$E$78,2,FALSE) -> Other operative currency differences | D99: =+VLOOKUP($B99,'1.3 FY2013'!$B$5:$E$78,3,FALSE) -> 111111 | E99: =+VLOOKUP($B99,'1.3 FY2013'!$B$5:$E$78,4,FALSE) -> External | F99: =-SUMIF('1.1 FY2011'!$B:$B,'2.1 Database'!B99,'1.1 FY2011'!$F:$F) -> 0 | G99: =-SUMIF('1.2 FY2012'!$B:$B,'2.1 Database'!B99,'1.2 FY2012'!$F:$F) -> 0 | H99: =-SUMIF('1.3 FY2013'!$B:$B,'2.1 Database'!B99,'1.3 FY2013'!$F:$F) -> 1252.837 | J99: Other operating expenses | K99: =+COUNTIF('2.2 P&L statement'!$B$4:$B$24,'2.1 Database'!J99) -> 1
B100: 20690100001006 | C100: =+VLOOKUP($B100,'1.3 FY2013'!$B$5:$E$78,2,FALSE) -> Corporate recharges | D100: =+VLOOKUP($B100,'1.3 FY2013'!$B$5:$E$78,3,FALSE) -> 1006 | E100: =+VLOOKUP($B100,'1.3 FY2013'!$B$5:$E$78,4,FALSE) -> Generco Mining GmbH | F100: =-SUMIF('1.1 FY2011'!$B:$B,'2.1 Database'!B100,'1.1 FY2011'!$F:$F) -> 0 | G100: =-SUMIF('1.2 FY2012'!$B:$B,'2.1 Database'!B100,'1.2 FY2012'!$F:$F) -> 0 | H100: =-SUMIF('1.3 FY2013'!$B:$B,'2.1 Database'!B100,'1.3 FY2013'!$F:$F) -> 0 | J100: Recharges | K100: =+COUNTIF('2.2 P&L statement'!$B$4:$B$24,'2.1 Database'!J100) -> 1
B101: 2069020000111111 | C101: =+VLOOKUP($B101,'1.3 FY2013'!$B$5:$E$78,2,FALSE) -> Reimbursements+compensation for damages | D101: =+VLOOKUP($B101,'1.3 FY2013'!$B$5:$E$78,3,FALSE) -> 111111 | E101: =+VLOOKUP($B101,'1.3 FY2013'!$B$5:$E$78,4,FALSE) -> External | F101: =-SUMIF('1.1 FY2011'!$B:$B,'2.1 Database'!B101,'1.1 FY2011'!$F:$F) -> 0 | G101: =-SUMIF('1.2 FY2012'!$B:$B,'2.1 Database'!B101,'1.2 FY2012'!$F:$F) -> 0 | H101: =-SUMIF('1.3 FY2013'!$B:$B,'2.1 Database'!B101,'1.3 FY2013'!$F:$F) -> 61500 | J101: Other operating expenses | K101: =+COUNTIF('2.2 P&L statement'!$B$4:$B$24,'2.1 Database'!J101) -> 1
B102: 2069980000105 | C102: =+VLOOKUP($B102,'1.3 FY2013'!$B$5:$E$78,2,FALSE) -> Other income | D102: =+VLOOKUP($B102,'1.3 FY2013'!$B$5:$E$78,3,FALSE) -> 105 | E102: =+VLOOKUP($B102,'1.3 FY2013'!$B$5:$E$78,4,FALSE) -> Generco Healthcare Ltd | F102: =-SUMIF('1.1 FY2011'!$B:$B,'2.1 Database'!B102,'1.1 FY2011'!$F:$F) -> 0 | G102: =-SUMIF('1.2 FY2012'!$B:$B,'2.1 Database'!B102,'1.2 FY2012'!$F:$F) -> 0 | H102: =-SUMIF('1.3 FY2013'!$B:$B,'2.1 Database'!B102,'1.3 FY2013'!$F:$F) -> 30913.426 | J102: Other income | K102: =+COUNTIF('2.2 P&L statement'!$B$4:$B$24,'2.1 Database'!J102) -> 1
B103: 2070600000105 | C103: =+VLOOKUP($B103,'1.3 FY2013'!$B$5:$E$78,2,FALSE) -> Leasings | D103: =+VLOOKUP($B103,'1.3 FY2013'!$B$5:$E$78,3,FALSE) -> 105 | E103: =+VLOOKUP($B103,'1.3 FY2013'!$B$5:$E$78,4,FALSE) -> Generco Healthcare Ltd | F103: =-SUMIF('1.1 FY2011'!$B:$B,'2.1 Database'!B103,'1.1 FY2011'!$F:$F) -> 0 | G103: =-SUMIF('1.2 FY2012'!$B:$B,'2.1 Database'!B103,'1.2 FY2012'!$F:$F) -> 0 | H103: =-SUMIF('1.3 FY2013'!$B:$B,'2.1 Database'!B103,'1.3 FY2013'!$F:$F) -> 1423120 | J103: Leasing | K103: =+COUNTIF('2.2 P&L statement'!$B$4:$B$24,'2.1 Database'!J103) -> 1
B104: 207110000088 | C104: =+VLOOKUP($B104,'1.3 FY2013'!$B$5:$E$78,2,FALSE) -> Insurance expenses | D104: =+VLOOKUP($B104,'1.3 FY2013'!$B$5:$E$78,3,FALSE) -> 88 | E104: =+VLOOKUP($B104,'1.3 FY2013'!$B$5:$E$78,4,FALSE) -> Generco Ltd | F104: =-SUMIF('1.1 FY2011'!$B:$B,'2.1 Database'!B104,'1.1 FY2011'!$F:$F) -> 0 | G104: =-SUMIF('1.2 FY2012'!$B:$B,'2.1 Database'!B104,'1.2 FY2012'!$F:$F) -> 0 | H104: =-SUMIF('1.3 FY2013'!$B:$B,'2.1 Database'!B104,'1.3 FY2013'!$F:$F) -> -584.66 | J104: Other operating expenses | K104: =+COUNTIF('2.2 P&L statement'!$B$4:$B$24,'2.1 Database'!J104) -> 1
B105: 2071209100111111 | C105: =+VLOOKUP($B105,'1.3 FY2013'!$B$5:$E$78,2,FALSE) -> Repairs/Maintenance costs | D105: =+VLOOKUP($B105,'1.3 FY2013'!$B$5:$E$78,3,FALSE) -> 111111 | E105: =+VLOOKUP($B105,'1.3 FY2013'!$B$5:$E$78,4,FALSE) -> External | F105: =-SUMIF('1.1 FY2011'!$B:$B,'2.1 Database'!B105,'1.1 FY2011'!$F:$F) -> 0 | G105: =-SUMIF('1.2 FY2012'!$B:$B,'2.1 Database'!B105,'1.2 FY2012'!$F:$F) -> 0 | H105: =-SUMIF('1.3 FY2013'!$B:$B,'2.1 Database'!B105,'1.3 FY2013'!$F:$F) -> -1353 | J105: Other operating expenses | K105: =+COUNTIF('2.2 P&L statement'!$B$4:$B$24,'2.1 Database'!J105) -> 1
B106: 2082110000111101 | C106: =+VLOOKUP($B106,'1.3 FY2013'!$B$5:$E$78,2,FALSE) -> Impairment of participation | D106: =+VLOOKUP($B106,'1.3 FY2013'!$B$5:$E$78,3,FALSE) -> 111101 | E106: =+VLOOKUP($B106,'1.3 FY2013'!$B$5:$E$78,4,FALSE) -> Not assigned | F106: =-SUMIF('1.1 FY2011'!$B:$B,'2.1 Database'!B106,'1.1 FY2011'!$F:$F) -> 0 | G106: =-SUMIF('1.2 FY2012'!$B:$B,'2.1 Database'!B106,'1.2 FY2012'!$F:$F) -> 0 | H106: =-SUMIF('1.3 FY2013'!$B:$B,'2.1 Database'!B106,'1.3 FY2013'!$F:$F) -> 0 | J106: 0 | K106: =+COUNTIF('2.2 P&L statement'!$B$4:$B$24,'2.1 Database'!J106) -> 0
B107: 2111111997111101 | C107: =+VLOOKUP($B107,'1.3 FY2013'!$B$5:$E$78,2,FALSE) -> Offset segments (tech.) | D107: =+VLOOKUP($B107,'1.3 FY2013'!$B$5:$E$78,3,FALSE) -> 111101 | E107: =+VLOOKUP($B107,'1.3 FY2013'!$B$5:$E$78,4,FALSE) -> Not assigned | F107: =-SUMIF('1.1 FY2011'!$B:$B,'2.1 Database'!B107,'1.1 FY2011'!$F:$F) -> 0 | G107: =-SUMIF('1.2 FY2012'!$B:$B,'2.1 Database'!B107,'1.2 FY2012'!$F:$F) -> 0 | H107: =-SUMIF('1.3 FY2013'!$B:$B,'2.1 Database'!B107,'1.3 FY2013'!$F:$F) -> 0 | J107: 0 | K107: =+COUNTIF('2.2 P&L statement'!$B$4:$B$24,'2.1 Database'!J107) -> 0
J108: x | K108: x

Sheet 2.2 P&L statement
B1: P&L statement
B3: EUR in millions | C3: FY11 | D3: FY12 | E3: FY13 | G3: Var% FY11-FY12 | H3: Var% FY12-FY13 | J3: Formula for calculating y-o-y % variations:
B4: Net Sales | C4: =+SUMIF('2.1 Database'!$J:$J,'2.2 P&L statement'!$B4,'2.1 Database'!F:F)/1000000 -> 14.500341 | D4: =+SUMIF('2.1 Database'!$J:$J,'2.2 P&L statement'!$B4,'2.1 Database'!G:G)/1000000 -> 16.14829536 | E4: =+SUMIF('2.1 Database'!$J:$J,'2.2 P&L statement'!$B4,'2.1 Database'!H:H)/1000000 -> 15.04780302 | G4: =+IF(ISERROR((D4/C4)-1),"n.a.",IF(((D4/C4)-1)>1,">100.0%",IF(((D4/C4)-1)<-1,"<-100.0%",((D4/C4)-1)))) -> 0.1136493525 | H4: =+IF(ISERROR((E4/D4)-1),"n.a.",IF(((E4/D4)-1)>1,">100.0%",IF(((E4/D4)-1)<-1,"<-100.0%",((E4/D4)-1)))) -> -0.06814913408 | J4: IF(ISERROR((D4/C4)-1),"n.a.",IF(((D4/C4)-1)>1,">100.0%",IF(((D4/C4)-1)<-1,"<-100.0%",((D4/C4)-1))))
B5: Other revenues | C5: =+SUMIF('2.1 Database'!$J:$J,'2.2 P&L statement'!$B5,'2.1 Database'!F:F)/1000000 -> 4.794856192 | D5: =+SUMIF('2.1 Database'!$J:$J,'2.2 P&L statement'!$B5,'2.1 Database'!G:G)/1000000 -> 6.960217645 | E5: =+SUMIF('2.1 Database'!$J:$J,'2.2 P&L statement'!$B5,'2.1 Database'!H:H)/1000000 -> 6.373617514 | G5: =+IF(ISERROR((D5/C5)-1),"n.a.",IF(((D5/C5)-1)>1,">100.0%",IF(((D5/C5)-1)<-1,"<-100.0%",((D5/C5)-1)))) -> 0.451600917 | H5: =+IF(ISERROR((E5/D5)-1),"n.a.",IF(((E5/D5)-1)>1,">100.0%",IF(((E5/D5)-1)<-1,"<-100.0%",((E5/D5)-1)))) -> -0.08427899254
B6: Recharges | C6: =+SUMIF('2.1 Database'!$J:$J,'2.2 P&L statement'!$B6,'2.1 Database'!F:F)/1000000 -> 3.220054252 | D6: =+SUMIF('2.1 Database'!$J:$J,'2.2 P&L statement'!$B6,'2.1 Database'!G:G)/1000000 -> 2.924091995 | E6: =+SUMIF('2.1 Database'!$J:$J,'2.2 P&L statement'!$B6,'2.1 Database'!H:H)/1000000 -> 4.89317773 | G6: -0.09191219583 | H6: 0.6734007474
B7: Total Revenues | C7: =+SUM(C4:C6) -> 22.51525144 | D7: =+SUM(D4:D6) -> 26.03260501 | E7: =+SUM(E4:E6) -> 26.31459826 | G7: 0.1562209318 | H7: 0.0108323104
B8: Direct costs | C8: =+SUMIF('2.1 Database'!$J:$J,'2.2 P&L statement'!$B8,'2.1 Database'!F:F)/1000000 -> -4.428911764 | D8: =+SUMIF('2.1 Database'!$J:$J,'2.2 P&L statement'!$B8,'2.1 Database'!G:G)/1000000 -> -5.463188825 | E8: =+SUMIF('2.1 Database'!$J:$J,'2.2 P&L statement'!$B8,'2.1 Database'!H:H)/1000000 -> -5.674152067 | G8: 0.2335284865 | H8: 0.03861540371
B9: Gross Margin | C9: =+SUM(C7:C8) -> 18.08633968 | D9: =+SUM(D7:D8) -> 20.56941618 | E9: =+SUM(E7:E8) -> 20.6404462 | G9: 0.1372901617 | H9: 0.003453185806
B10: Other operating expenses | C10: =+SUMIF('2.1 Database'!$J:$J,'2.2 P&L statement'!$B10,'2.1 Database'!F:F)/1000000 -> -3.39664898 | D10: =+SUMIF('2.1 Database'!$J:$J,'2.2 P&L statement'!$B10,'2.1 Database'!G:G)/1000000 -> -3.704843345 | E10: =+SUMIF('2.1 Database'!$J:$J,'2.2 P&L statement'!$B10,'2.1 Database'!H:H)/1000000 -> -6.687483038 | G10: 0.09073482918 | H10: 0.8050649961
B11: Personnel expenses | C11: =+SUMIF('2.1 Database'!$J:$J,'2.2 P&L statement'!$B11,'2.1 Database'!F:F)/1000000 -> -6.17073904 | D11: =+SUMIF('2.1 Database'!$J:$J,'2.2 P&L statement'!$B11,'2.1 Database'!G:G)/1000000 -> -8.071858945 | E11: =+SUMIF('2.1 Database'!$J:$J,'2.2 P&L statement'!$B11,'2.1 Database'!H:H)/1000000 -> -5.835888176 | G11: 0.3080862588 | H11: -0.2770081569
B12: Leasing | C12: =+SUMIF('2.1 Database'!$J:$J,'2.2 P&L statement'!$B12,'2.1 Database'!F:F)/1000000 -> -1.127445872 | D12: =+SUMIF('2.1 Database'!$J:$J,'2.2 P&L statement'!$B12,'2.1 Database'!G:G)/1000000 -> -1.055381475 | E12: =+SUMIF('2.1 Database'!$J:$J,'2.2 P&L statement'!$B12,'2.1 Database'!H:H)/1000000 -> 1.596053449 | G12: -0.06391827651 | H12: <-100.0%
B13: Services | C13: =+SUMIF('2.1 Database'!$J:$J,'2.2 P&L statement'!$B13,'2.1 Database'!F:F)/1000000 -> -2.543088208 | D13: =+SUMIF('2.1 Database'!$J:$J,'2.2 P&L statement'!$B13,'2.1 Database'!G:G)/1000000 -> -1.837786345 | E13: =+SUMIF('2.1 Database'!$J:$J,'2.2 P&L statement'!$B13,'2.1 Database'!H:H)/1000000 -> -1.954983931 | G13: -0.2773406997 | H13: 0.06377106148
B14: Travel costs | C14: =+SUMIF('2.1 Database'!$J:$J,'2.2 P&L statement'!$B14,'2.1 Database'!F:F)/1000000 -> -1.813525004 | D14: =+SUMIF('2.1 Database'!$J:$J,'2.2 P&L statement'!$B14,'2.1 Database'!G:G)/1000000 -> -2.39325919 | E14: =+SUMIF('2.1 Database'!$J:$J,'2.2 P&L statement'!$B14,'2.1 Database'!H:H)/1000000 -> -2.514431887 | G14: 0.3196725629 | H14: 0.05063082908
B15: Other income | C15: =+SUMIF('2.1 Database'!$J:$J,'2.2 P&L statement'!$B15,'2.1 Database'!F:F)/1000000 -> 5.7222e-05 | D15: =+SUMIF('2.1 Database'!$J:$J,'2.2 P&L statement'!$B15,'2.1 Database'!G:G)/1000000 -> -0.00735749 | E15: =+SUMIF('2.1 Database'!$J:$J,'2.2 P&L statement'!$B15,'2.1 Database'!H:H)/1000000 -> 0.046785428 | G15: <-100.0% | H15: <-100.0%
B16: Capitalized costs | C16: =+SUMIF('2.1 Database'!$J:$J,'2.2 P&L statement'!$B16,'2.1 Database'!F:F)/1000000 -> 5.268332198 | D16: =+SUMIF('2.1 Database'!$J:$J,'2.2 P&L statement'!$B16,'2.1 Database'!G:G)/1000000 -> 0.74482695 | E16: =+SUMIF('2.1 Database'!$J:$J,'2.2 P&L statement'!$B16,'2.1 Database'!H:H)/1000000 -> 0 | G16: -0.8586218708 | H16: -1
B17: EBITDA | C17: =+SUM(C9:C16) -> 8.303281996 | D17: =+SUM(D9:D16) -> 4.24375634 | E17: =+SUM(E9:E16) -> 5.290498041 | G17: -0.4889061528 | H17: 0.2466545242
B18: D&A | C18: =+SUMIF('2.1 Database'!$J:$J,'2.2 P&L statement'!$B18,'2.1 Database'!F:F)/1000000 -> -2.045243514 | D18: =+SUMIF('2.1 Database'!$J:$J,'2.2 P&L statement'!$B18,'2.1 Database'!G:G)/1000000 -> -2.044005815 | E18: =+SUMIF('2.1 Database'!$J:$J,'2.2 P&L statement'!$B18,'2.1 Database'!H:H)/1000000 -> -1.888361514 | G18: -0.0006051597238 | H18: -0.07614670167
B19: EBIT | C19: =+SUM(C17:C18) -> 6.258038482 | D19: =+SUM(D17:D18) -> 2.199750525 | E19: =+SUM(E17:E18) -> 3.402136527 | G19: -0.6484920105 | H19: 0.5466010751
B20: Financial items | C20: =+SUMIF('2.1 Database'!$J:$J,'2.2 P&L statement'!$B20,'2.1 Database'!F:F)/1000000 -> -2.842692366 | D20: =+SUMIF('2.1 Database'!$J:$J,'2.2 P&L statement'!$B20,'2.1 Database'!G:G)/1000000 -> -2.71074692 | E20: =+SUMIF('2.1 Database'!$J:$J,'2.2 P&L statement'!$B20,'2.1 Database'!H:H)/1000000 -> -2.250707829 | G20: -0.04641566129 | H20: -0.1697093475
B21: Extraordinary items | C21: =+SUMIF('2.1 Database'!$J:$J,'2.2 P&L statement'!$B21,'2.1 Database'!F:F)/1000000 -> -0.022763 | D21: =+SUMIF('2.1 Database'!$J:$J,'2.2 P&L statement'!$B21,'2.1 Database'!G:G)/1000000 -> -4.5786198 | E21: =+SUMIF('2.1 Database'!$J:$J,'2.2 P&L statement'!$B21,'2.1 Database'!H:H)/1000000 -> -0.007173196 | G21: >100.0% | H21: -0.9984333279
B22: EBT | C22: =+SUM(C19:C21) -> 3.392583116 | D22: =+SUM(D19:D21) -> -5.089616195 | E22: =+SUM(E19:E21) -> 1.144255502 | G22: <-100.0% | H22: <-100.0%
B23: Taxes | C23: =+SUMIF('2.1 Database'!$J:$J,'2.2 P&L statement'!$B23,'2.1 Database'!F:F)/1000000 -> -0.488465122 | D23: =+SUMIF('2.1 Database'!$J:$J,'2.2 P&L statement'!$B23,'2.1 Database'!G:G)/1000000 -> -0.984191965 | E23: =+SUMIF('2.1 Database'!$J:$J,'2.2 P&L statement'!$B23,'2.1 Database'!H:H)/1000000 -> -0.364965026 | G23: >100.0% | H23: -0.6291729266
B24: Net Income | C24: =+SUM(C22:C23) -> 2.904117994 | D24: =+SUM(D22:D23) -> -6.07380816 | E24: =+SUM(E22:E23) -> 0.779290476 | G24: <-100.0% | H24: <-100.0%
B26: Gross Margin % | C26: =C9/C7 -> 0.8032928135 | D26: =D9/D7 -> 0.7901405248 | E26: =E9/E7 -> 0.7843724609
B27: EBITDA % | C27: =C17/C7 -> 0.3687847776 | D27: =D17/D7 -> 0.1630169681 | E27: =E17/E7 -> 0.2010480262
B28: EBIT % | C28: =C19/C7 -> 0.2779466398 | D28: =D19/D7 -> 0.08449982338 | E28: =E19/E7 -> 0.1292870403
B32: Net income | C32: =+SUMIF('2.1 Database'!$J:$J,'2.2 P&L statement'!$B32,'2.1 Database'!F:F)/1000000 -> -2.904117994 | D32: =+SUMIF('2.1 Database'!$J:$J,'2.2 P&L statement'!$B32,'2.1 Database'!G:G)/1000000 -> 6.07380816 | E32: =+SUMIF('2.1 Database'!$J:$J,'2.2 P&L statement'!$B32,'2.1 Database'!H:H)/1000000 -> -0.779290476
C33: =+ROUND(C24+C32,9) -> 0 | D33: =+D24+D32 -> 0 | E33: =+E24+E32 -> 0

Sheet 3. Charts -->
B12: 3. Charts -->

Sheet 3.1 Column stacked chart
B1: Column stacked chart
C3: FY11 | D3: FY12 | E3: FY13
B4: ='[1]2.2 P&L statement'!B4 -> Net Sales | C4: ='2.2 P&L statement'!C4 -> 14.500341 | D4: ='2.2 P&L statement'!D4 -> 16.14829536 | E4: ='2.2 P&L statement'!E4 -> 15.04780302
B5: ='[1]2.2 P&L statement'!B5 -> Other revenues | C5: ='2.2 P&L statement'!C5 -> 4.794856192 | D5: ='2.2 P&L statement'!D5 -> 6.960217645 | E5: ='2.2 P&L statement'!E5 -> 6.373617514
B6: ='[1]2.2 P&L statement'!B6 -> Recharges | C6: ='2.2 P&L statement'!C6 -> 3.220054252 | D6: ='2.2 P&L statement'!D6 -> 2.924091995 | E6: ='2.2 P&L statement'!E6 -> 4.89317773
B7: ='[1]2.2 P&L statement'!B27 -> Gross Margin % | C7: ='2.2 P&L statement'!C26 -> 0.8032928135 | D7: ='2.2 P&L statement'!D26 -> 0.7901405248 | E7: ='2.2 P&L statement'!E26 -> 0.7843724609
I12: a

Sheet 3.2 Dougnut chart
B1: Doughnut chart
C3: ='[1]Column stacked chart'!C3 -> FY11 | D3: ='[1]Column stacked chart'!D3 -> FY12 | E3: ='[1]Column stacked chart'!E3 -> FY13
B4: ='2.2 P&L statement'!B4 -> Net Sales | C4: ='2.2 P&L statement'!C4 -> 14.500341 | D4: ='2.2 P&L statement'!D4 -> 16.14829536 | E4: ='2.2 P&L statement'!E4 -> 15.04780302
B5: ='2.2 P&L statement'!B5 -> Other revenues | C5: ='2.2 P&L statement'!C5 -> 4.794856192 | D5: ='2.2 P&L statement'!D5 -> 6.960217645 | E5: ='2.2 P&L statement'!E5 -> 6.373617514
B6: ='2.2 P&L statement'!B6 -> Recharges | C6: ='2.2 P&L statement'!C6 -> 3.220054252 | D6: ='2.2 P&L statement'!D6 -> 2.924091995 | E6: ='2.2 P&L statement'!E6 -> 4.89317773

Sheet 3.3 Area & line chart
B1: Area & Line chart
C4: FY11 | D4: FY12 | E4: FY13
B5: Revenues | C5: ='[1]2.2 P&L statement'!C7 -> 22.51525144 | D5: ='[1]2.2 P&L statement'!D7 -> 26.03260501 | E5: ='[1]2.2 P&L statement'!E7 -> 26.31459826
B6: Gross Margin % | C6: ='[1]2.2 P&L statement'!C27 -> 0.8032928135 | D6: ='[1]2.2 P&L statement'!D27 -> 0.7901405248 | E6: ='[1]2.2 P&L statement'!E27 -> 0.7843724609

Sheet 3.4 Bridge Chart
B1: Bridge chart
B4: EBITDA FY12 | C4: ='2.2 P&L statement'!D17 -> 4.24375634
B5: Change in Revenues | C5: ='2.2 P&L statement'!E7-'2.2 P&L statement'!D7 -> 0.281993258
B6: Change in Variable costs | C6: =+'2.2 P&L statement'!E8-'2.2 P&L statement'!D8 -> -0.210963242
B7: Change in Opex | C7: =SUM('2.2 P&L statement'!E10:E16)-SUM('2.2 P&L statement'!D10:D16) -> 0.975711685
B8: EBITDA FY13 | C8: ='2.2 P&L statement'!E17 -> 5.290498041
B10: Check | C10: =SUM(C4:C7)-C8 -> 0
B14: EBITDA FY12 | C14: Change in Revenues | D14: Change in Variable costs | E14: Change in Opex | F14: EBITDA FY13
B15: =C4 -> 4.24375634 | C15: =+B15 -> 4.24375634 | D15: =+C15+C16+C6 -> 4.314786356 | E15: =+D15 -> 4.314786356 | F15: =+E15+E16 -> 5.290498041
B16: 0 | C16: =+C5 -> 0.281993258 | D16: =-C6 -> 0.210963242 | E16: =+C7 -> 0.975711685
... 3 more rows
